{"text_format":"1","workbook":"xlsx","n_sheets":19,"sheets":["NAVIGATORE","ANAGRAFICA","EROGAZIONI","DAREALIZZARE","ANTICIPO","1°SAL","1°SAL_Credito","2°SAL","2°SAL_Credito","3°SAL","3°SAL_Credito","4°SAL","4°SAL_Credito","SALDO","SAL_a Saldo_Credito","UNICO","SAL_Unico_Credito","CASISTICA CAPOIII","APP"],"not_rendered":{"charts":0,"images":6,"macros":1,"external_links":1,"defined_names":46,"comments":7,"pivot_tables":0},"unopened":[],"bounds":{"document_bytes":16777216,"sheet_cells":100000,"rows_first":2000,"rows_last":500,"rows_between":2000,"halvings":0,"cell_chars":16384,"cell_head_chars":4096},"cells_cut":0,"cells_raw":0,"read":"whole","date_system":"1900"}

{"sheet":"NAVIGATORE","index":0,"n_rows":30,"n_cols":12,"rows_kept":30,"cut":false,"hidden":false,"merged":[[5,1,6,1],[4,1,4,11],[27,1,27,10],[5,2,5,10],[16,1,17,1],[16,2,16,7],[9,11,9,13],[10,11,10,13],[11,11,11,13],[12,11,12,13]]}
[]
[]
[]
[]
[null,"RIEPILOGO AVANZAMENTO"]
[null,"EVENTO EROG.","CONTRIBUTI RICHIESTI"]
[null,null,"ANTICIPO","% FIN. CONCESSO","FATTURE RENDICONTATE (TAB.1)","Quietanzate","Non Quietanzate","CAPITALE CIRCOLANTE NETTO","TOTALE RICHIESTA (INV + CCN)","% INV. AMMESS","EVIDENZE INSERITE PER PAGAMENTI SAL PRECEDENTI"]
[null,"ANTICIPO",{"$f":"+IF(ANTICIPO!C18=\"\",0,ANTICIPO!C18)","v":0},{"$f":"+IF(ISERROR(ANTICIPO!E18),0,ANTICIPO!E18)","v":0}]
[null,"1°SAL",null,null,{"$f":"+'1°SAL'!F37","v":0},{"$f":"+'1°SAL'!D19","v":0},{"$f":"+'1°SAL'!D20","v":0},{"$f":"+'1°SAL'!D21","v":0},{"$f":"+E9+H9","v":0},{"$f":"IF(ISERROR(E9/Tot_Inv_AMM),0,E9/Tot_Inv_AMM)","v":0}]
[null,"2°SAL",null,null,{"$f":"+'2°SAL'!F37","v":0},{"$f":"+'2°SAL'!D19","v":0},{"$f":"+'2°SAL'!D20","v":0},{"$f":"+'2°SAL'!D21","v":0},{"$f":"+E10+H10","v":0},{"$f":"IF(ISERROR(E10/Tot_Inv_AMM),0,E10/Tot_Inv_AMM)","v":0},{"$f":"IF(E10=0,0,IF('2°SAL'!E58=0,0,'2°SAL'!E58))","v":0},{"$f":"+IF(D20=\"\",\"\", IF(AND(G20>0,K10=G20),\"\",CONCATENATE(\"ATT: non sono state fornite evidenze dell'avvenuto pagamento di precedenti erogazioni per € \",TEXT(G20-K10,\"#.##0.00\"))))","v":""}]
[null,"3°SAL",null,null,{"$f":"+'3°SAL'!F37","v":0},{"$f":"+'3°SAL'!D19","v":0},{"$f":"+'3°SAL'!D20","v":0},{"$f":"+'3°SAL'!D21","v":0},0,{"$f":"IF(ISERROR(E11/Tot_Inv_AMM),0,E11/Tot_Inv_AMM)","v":0},{"$f":"IF(E11=0,0,IF('3°SAL'!E58=0,0,'3°SAL'!E58))","v":0},{"$f":"+IF(D21=\"\",\"\", IF(AND(G21>0,K11=G21),\"\",CONCATENATE(\"ATT: non sono state fornite evidenze dell'avvenuto pagamento di precedenti erogazioni per € \",TEXT(G21-K11,\"#.##0.00\"))))","v":""}]
[null,"4°SAL",null,null,{"$f":"+'4°SAL'!F37","v":0},{"$f":"+'4°SAL'!D19","v":0},{"$f":"+'4°SAL'!D20","v":0},{"$f":"+'4°SAL'!D21","v":0},0,{"$f":"IF(ISERROR(E12/Tot_Inv_AMM),0,E12/Tot_Inv_AMM)","v":0},{"$f":"IF(E12=0,0,IF('4°SAL'!E58=0,0,'4°SAL'!E58))","v":0},{"$f":"+IF(D22=\"\",\"\", IF(AND(G22>0,K12=G22),\"\",CONCATENATE(\"ATT: non sono state fornite evidenze dell'avvenuto pagamento di precedenti erogazioni per € \",TEXT(G22-K12,\"#.##0.00\"))))","v":""}]
[null,"SALDO",null,null,{"$f":"+SALDO!F37","v":0},{"$f":"+E13","v":0},null,{"$f":"+SALDO!E40","v":0},0,{"$f":"IF(ISERROR(E13/Tot_Inv_AMM),0,E13/Tot_Inv_AMM)","v":0},{"$f":"IF(E13=0,0,IF(SALDO!E58=0,0,SALDO!E58))","v":0},{"$f":"+IF(D23=\"\",\"\", IF(AND(G23>0,K13=G23),\"\",CONCATENATE(\"ATT: non sono state fornite evidenze dell'avvenuto pagamento di precedenti erogazioni per € \",TEXT(G23-K13,\"#.##0.00\"))))","v":""}]
[null,null,{"$f":"SUM(C8:C13)","v":0},null,{"$f":"SUM(E9:E13)","v":0},{"$f":"SUM(F9:F13)","v":0},0,0,0,0,0]
[]
[]
[null,"EVENTO EROG.","CONTRIBUTI EROGATI"]
[null,null,"DATA RICHIESTA","DATA VALUTA","AGEVOLAZIONE CONCESSA","di cui FATT. Quietanzate","di cui FATT. Non Quietanzate","di cui  Cap. Circ. Netto"]
[null,"ANTICIPO",{"$f":"+IF(EROGAZIONI!C4=\"\",\"\",EROGAZIONI!C4)","v":""},{"$f":"+IF(EROGAZIONI!D4=\"\",\"\",EROGAZIONI!D4)","v":""}]
[null,"1°SAL",{"$f":"+IF(EROGAZIONI!C5=\"\",\"\",EROGAZIONI!C5)","v":""},{"$f":"+IF(EROGAZIONI!D5=\"\",\"\",EROGAZIONI!D5)","v":""},{"$f":"+EROGAZIONI!E5","v":0},{"$f":"+EROGAZIONI!F5","v":0},{"$f":"+EROGAZIONI!G5","v":0},{"$f":"+EROGAZIONI!H5","v":0}]
[null,"2°SAL",{"$f":"+IF(EROGAZIONI!C6=\"\",\"\",EROGAZIONI!C6)","v":""},{"$f":"+IF(EROGAZIONI!D6=\"\",\"\",EROGAZIONI!D6)","v":""},{"$f":"+EROGAZIONI!E6","v":0},{"$f":"+EROGAZIONI!F6","v":0},{"$f":"+EROGAZIONI!G6","v":0},{"$f":"+EROGAZIONI!H6","v":0}]
[null,"3°SAL",{"$f":"+IF(EROGAZIONI!C7=\"\",\"\",EROGAZIONI!C7)","v":""},{"$f":"+IF(EROGAZIONI!D7=\"\",\"\",EROGAZIONI!D7)","v":""},{"$f":"+EROGAZIONI!E7","v":0},{"$f":"+EROGAZIONI!F7","v":0},{"$f":"+EROGAZIONI!G7","v":0},{"$f":"+EROGAZIONI!H7","v":0}]
[null,"4°SAL",{"$f":"+IF(EROGAZIONI!C8=\"\",\"\",EROGAZIONI!C8)","v":""},{"$f":"+IF(EROGAZIONI!D8=\"\",\"\",EROGAZIONI!D8)","v":""},{"$f":"+EROGAZIONI!E8","v":0},{"$f":"+EROGAZIONI!F8","v":0},{"$f":"+EROGAZIONI!G8","v":0},{"$f":"+EROGAZIONI!H8","v":0}]
[null,"SALDO",{"$f":"+IF(EROGAZIONI!C9=\"\",\"\",EROGAZIONI!C9)","v":""},{"$f":"+IF(EROGAZIONI!D9=\"\",\"\",EROGAZIONI!D9)","v":""},{"$f":"+EROGAZIONI!E9","v":0},{"$f":"+EROGAZIONI!F9","v":0},{"$f":"+EROGAZIONI!G9","v":0},{"$f":"+EROGAZIONI!H9","v":0}]
[null,null,null,null,{"$f":"SUM(E19:E24)","v":0},{"$f":"SUM(F20:F24)","v":0},0,0]
[]
[]
[null,"RIEPILOGO IMPORTI RICHIESTI UNICA SOLUZIONE"]
[null,"EVENTO EROG.",null,null,"FATTURE RENDICONTATE (TAB.1)",null,null,"CAPITALE CIRCOLANTE NETTO","TOTALE RICHIESTA CONTRIBUTO CONCESSO","% INV. AMMESS"]
[null,"UNICO",null,null,{"$f":"+UNICO!F38","v":0},null,null,{"$f":"+UNICO!E41","v":0},{"$f":"+E30+H30","v":0},{"$f":"+E30/Tot_Inv_AMM","v":{"$error":"#DIV/0!"}}]

{"sheet":"ANAGRAFICA","index":1,"n_rows":22,"n_cols":10,"rows_kept":22,"cut":false,"hidden":false,"merged":[[1,2,1,4],[1,6,1,7],[16,2,16,4],[2,2,2,7],[4,2,4,7],[3,2,3,7],[7,2,7,5],[9,2,9,7],[10,2,10,7],[11,4,11,7],[15,2,15,4],[6,2,6,5],[8,2,8,7],[12,10,12,15],[17,2,17,4],[18,2,18,4],[21,2,21,4],[20,2,20,4],[19,2,19,4],[12,2,12,5],[13,2,13,5],[11,10,11,15],[5,2,5,5],[4,9,4,18],[5,9,5,18],[6,9,6,18],[9,10,9,15],[10,10,10,15]]}
[]
[null,"IDPROGETTO (NIT2xxxx)",null,null,null,"CAPO"]
[null,"Referente"]
[null,"Codice fiscale Referente"]
[null,"Tipologia rappresentanza",null,null,null,null,null,null,null,{"$f":"+IF(C5=\"Procuratore Speciale\",\"La procura deve essere formata direttamente su supporto informatico, sottoscritta digitalmente dal Legale Rappresentante della Società.\",\"\")","v":""}]
[null,"Denominazione società",null,null,null,null,"Forma societaria",null,null,{"$f":"+IF(C5=\"Procuratore Speciale\",\"Deve essere corredata da autentica notarile digitale di firma, resa da un Notaio, il quale attesti i poteri e le qualità della persona che la conferisce ai sensi art. 25, comma 1, D.Lgs. 7/3/05, n. 82 e ss.mm.ii..\",\"\")","v":""}]
[null,"Indirizzo sede legale",null,null,null,null,"CAP",null,null,{"$f":"+IF(C5=\"Procuratore Speciale\",\"L’allegazione della procura non è necessaria laddove si tratti della medesima procura, se del caso, già acquisita in sede di stipula del contratto di finanziamento agevolato\",\"\")","v":""}]
[null,"Comune e provincia sede legale",null,null,null,null,"(Prov.)"]
[null,"PEC"]
[null,"Codice fiscale",null,null,null,null,null,null,null,"Istituto di credito"]
[null,"Partita IVA",null,null,null,null,null,null,null,"Filiale/Agenzia"]
[null,"Iscrizione al Registro imprese",null,"di",null,null,null,null,null,"Provincia"]
[null,"Indirizzo sede operativa",null,null,null,null,"CAP",null,null,"IBAN"]
[null,"Comune e provincia sede operativa",null,null,null,null,"(Prov.)"]
[]
[null,"Investimento Totale da realizzare"]
[null,"Investimento Totale Ammesso"]
[null,"Capitale Circolante Netto",null,null,null,{"$f":"IFERROR(C18/C17,0)","v":0}]
[null,"Totale Ammesso",{"$f":"+C17+C18","v":0}]
[null,"Agevolazione a mutuo"]
[null,"Agevolazione a fondo perduto"]
[null,"Totale Agevolazione concessa",{"$f":"+C20+C21","v":0}]

{"sheet":"EROGAZIONI","index":2,"n_rows":10,"n_cols":8,"rows_kept":10,"cut":false,"hidden":false,"merged":[]}
[]
[]
[null,"EVENTO EROG.","DATA RICHIESTA","DATA VALUTA","AGEVOLAZIONE CONCESSA","PER FATT. Quietanzate","PER FATT. Non Quietanzate","PER Cap. Circ. Netto"]
[null,"ANTICIPO"]
[null,"1°SAL"]
[null,"2°SAL"]
[null,"3°SAL"]
[null,"4°SAL"]
[null,"SALDO"]
[null,null,null,null,{"$f":"SUM(E4:E9)","v":0},{"$f":"SUM(F5:F9)","v":0},0,0]

{"sheet":"DAREALIZZARE","index":3,"n_rows":9,"n_cols":11,"rows_kept":9,"cut":false,"hidden":false,"merged":[[2,1,2,10]]}
[]
[]
[null,"DETTAGLIO FATTURE INVESTIMENTI DA REALIZZARE E NON AMMESSI ALLE AGEVOLAZIONI"]
[null,"N. fatt.","Fornitore ","Data fatt.","Descrizione","Imponibile SIVA","Importo IVA","Importo totale ","Modalità Pagamento","Data Pagamento","Categoria di spesa"]
[]
[]
[]
[]
[null,null,null,null,null,{"$f":"SUM(F5:F8)","v":0},{"$f":"SUM(G5:G8)","v":0},0]

{"sheet":"ANTICIPO","index":4,"n_rows":45,"n_cols":10,"rows_kept":45,"cut":false,"hidden":false,"merged":[[41,1,41,4],[43,7,44,9],[3,2,3,7],[5,1,5,6],[5,7,5,9],[7,1,7,9],[27,1,27,5],[32,1,32,5],[33,1,33,4],[35,1,35,4],[36,1,36,4],[40,1,40,5],[34,1,34,5],[37,1,37,4],[38,1,38,4],[39,1,39,4],[1,1,1,9],[24,1,24,9],[9,1,10,1],[20,1,22,9],[18,1,18,9],[19,1,19,9],[9,2,10,9],[12,2,12,3],[12,6,12,9],[14,2,14,9],[16,1,16,9]]}
[]
[" ","RICHIESTA EROGAZIONE ANTICIPO"]
[]
[null,"La Società",{"$f":"+IF(ANAGRAFICA!C6=\"\",\"\",ANAGRAFICA!C6)","v":""},null,null,null,null,null,"Progetto N.",{"$f":"+IF(ANAGRAFICA!C2=\"\",\"\",ANAGRAFICA!C2)","v":""}]
[]
[null,"nella persona del SUO",null,null,null,null,null,{"$f":"+IF(ANAGRAFICA!C5=\"\",\"\",ANAGRAFICA!C5)","v":""}]
[]
[null,{"$f":"IF(OR(ANAGRAFICA!C3=\"\",ANAGRAFICA!C4=\"\"),\"\",CONCATENATE(ANAGRAFICA!C3, \" codice fiscale \",ANAGRAFICA!C4))","v":""}]
[]
[null,"Sede in",{"$f":"+IF(OR(ANAGRAFICA!C7=\"\",ANAGRAFICA!C8=\"\",ANAGRAFICA!H8=\"\"),\"\",CONCATENATE(ANAGRAFICA!C7,\" - \",ANAGRAFICA!C8,\" (\",ANAGRAFICA!H8,\")\"))","v":""}]
[]
[]
[null,"Partita IVA",{"$f":"+IF(ANAGRAFICA!C11=\"\",\"\",ANAGRAFICA!C11)","v":""},null,null,"CCIAA",{"$f":"+IF(OR(ANAGRAFICA!C12=\"\",ANAGRAFICA!E12=\"\"),\"\",CONCATENATE(ANAGRAFICA!C12,\" al N° \",ANAGRAFICA!E12))","v":""}]
[]
[null,"PEC",{"$f":"+IF(ANAGRAFICA!$C$9=\"\",\"\",ANAGRAFICA!$C$9)","v":""}]
[]
[null,"CHIEDE L'EROGAZIONE DELL'ANTICIPO"]
[null,"per l'importo di",null,"pari al",{"$f":"IFERROR(IF(C18/ANAGRAFICA!C22<=40%,C18/ANAGRAFICA!C22,\"Errore\"),0)","v":0},"del valore delle agevolazioni concesse di €",null,null,null,{"$f":"+IF(ANAGRAFICA!C22=0,\"\",ANAGRAFICA!C22)","v":""}]
[null,{"$f":"+CONCATENATE(\"La somma eventualmente erogata dovrà essere accreditata sul c/c bancario intestato alla Società istituito presso l'istituto di credito \",ANAGRAFICA!K10,\" - Filiale/Agenzia \",ANAGRAFICA!K11)","v":"La somma eventualmente erogata dovrà essere accreditata sul c/c bancario intestato alla Società istituito presso l'istituto di credito  - Filiale/Agenzia "}]
[null,{"$f":"+CONCATENATE(\"IBAN di riferimento - \",ANAGRAFICA!K13)","v":"IBAN di riferimento - "}]
[null,"Detto conto corrente è dedicato, ancorché in via non esclusiva, al ricevimento delle agevolazioni concesse alla medesima società beneficiaria ai sensi del Decreto interministeriale MiSE - MEF 4 dicembre 2020."]
[]
[]
[]
[null,"1 - LA RICHIESTA DI EROGAZIONE DEVE ESSERE CORREDATA PENA DECADENZA DALLA SEGUENTE DOCUMENTAZIONE"]
[]
[null,"DICHIARAZIONI RICHIESTE PER ANTIMAFIA"]
[null,"TIPOLOGIA SOCIETARIA",null,null,null,null,"Società","Coop"]
[null,"ANT 1 - Dichiarazione Antimafia Società",null,null,null,null,{"$f":"+IF(ANAGRAFICA!$H$6=\"\",\"\",IF(AND(ANAGRAFICA!$C$22>=150000,AND(ANAGRAFICA!$H$6<>\"Soc. Coop.\",ANAGRAFICA!$H$6<>\"Soc. Coop. STP\")),\"obbl.\",\"\"))","v":""}]
[null,"ANT 2- Dichiarazione Antimafia Cooperative",null,null,null,null,null,{"$f":"+IF(AND(ANAGRAFICA!$C$22>=150000,OR(ANAGRAFICA!$H$6=\"Soc. Coop.\",ANAGRAFICA!$H$6=\"Soc. Coop. STP\")),\"obbl.\",\"\")","v":""}]
[null,"ANT 3 - Familiari ",null,null,null,null,{"$f":"+IF(G29=\"obbl.\",\"obbl.\",\"\")","v":""},{"$f":"+IF(H30=\"obbl.\",\"obbl.\",\"\")","v":""}]
[]
[null,"GARANZIE"]
[null,"Fideiussione o polizza fideiussioria",null,null,null,"Obbl."]
[null,"DICHIARAZIONE SOSTITUTIVE ATTO NOTORIO"]
[null,"MOD 1 - Dichiarazioni Complessive",null,null,null,"Obbl."]
[null,"MOD 3 - Dichiarazioni Assenza Precedenti",null,null,null,"Obbl."]
[null,"MOD 6 - Antiriciclaggio (solo progetti diversi da PNRR)",null,null,null,"Obbl."]
[null,"MOD 7 - PNRR (solo progetti PNRR)",null,null,null,"Obbl."]
[null,"MOD 9 - Dichiarazione DURC",null,null,null,"Obbl."]
[null,"ATTESTAZIONI E DOCUMENTI"]
[null," - Copia di un documento di riconoscimento in corso di validità",null,null,null,"Obbl."]
[]
[null,null,"LUOGO E DATA",null,null,null,null,{"$f":"+CONCATENATE(\"FIRMA DIGITALE DEL \",ANAGRAFICA!C5)","v":"FIRMA DIGITALE DEL "}]
[null,null,{"$f":"+CONCATENATE(ANAGRAFICA!C28,\" \",TEXT(TODAY(),\"gg/mm/aaaa\"))","v":" 27/05/2024"}]

{"sheet":"1°SAL","index":5,"n_rows":103,"n_cols":10,"rows_kept":103,"cut":false,"hidden":false,"merged":[[9,2,10,9],[9,1,10,1],[19,5,19,9],[27,1,27,9],[21,1,21,9],[22,1,22,9],[23,1,25,9],[12,2,12,3],[12,6,12,9],[14,2,14,9],[15,1,15,9],[17,1,17,9],[1,1,1,9],[3,2,3,7],[5,1,5,6],[5,7,5,9],[7,1,7,9],[72,1,72,4],[73,1,73,4],[75,1,75,5],[63,1,63,9],[30,1,30,9],[60,7,61,9],[49,1,59,9],[65,1,65,7],[40,1,40,3],[89,1,89,4],[76,1,76,4],[77,1,77,4],[78,1,78,4],[79,1,79,4],[80,1,80,4],[81,1,81,4],[82,1,82,4],[83,1,83,4],[97,1,97,4],[98,1,98,4],[101,7,102,9],[66,1,66,5],[71,1,71,5],[85,1,85,5],[93,1,93,4],[94,1,94,4],[95,1,95,4],[96,1,96,4],[90,1,90,4],[91,1,91,4],[92,1,92,4],[86,1,86,4],[87,1,87,4],[88,1,88,4]]}
[]
[" ","RICHIESTA EROGAZIONE 1° SAL"]
[]
[null,"La Società",{"$f":"+IF(ANAGRAFICA!C6=\"\",\"\",ANAGRAFICA!C6)","v":""},null,null,null,null,null,"Progetto N.",{"$f":"+IF(ANAGRAFICA!C2=\"\",\"\",ANAGRAFICA!C2)","v":""}]
[]
[null,"nella persona del ",null,null,null,null,null,{"$f":"+IF(ANAGRAFICA!C5=\"\",\"\",ANAGRAFICA!C5)","v":""}]
[]
[null,{"$f":"IF(OR(ANAGRAFICA!C3=\"\",ANAGRAFICA!C4=\"\"),\"\",CONCATENATE(ANAGRAFICA!C3, \" codice fiscale \",ANAGRAFICA!C4))","v":""}]
[]
[null,"Sede in",{"$f":"+IF(OR(ANAGRAFICA!C7=\"\",ANAGRAFICA!C8=\"\",ANAGRAFICA!H8=\"\"),\"\",CONCATENATE(ANAGRAFICA!C7,\" - \",ANAGRAFICA!C8,\" (\",ANAGRAFICA!H8,\")\"))","v":""}]
[]
[]
[null,"Partita IVA",{"$f":"+IF(ANAGRAFICA!C11=\"\",\"\",ANAGRAFICA!C11)","v":""},null,null,"CCIAA",{"$f":"+IF(OR(ANAGRAFICA!C12=\"\",ANAGRAFICA!E12=\"\"),\"\",CONCATENATE(ANAGRAFICA!C12,\" al N° \",ANAGRAFICA!E12))","v":""}]
[]
[null,"PEC",{"$f":"+IF(ANAGRAFICA!$C$9=\"\",\"\",ANAGRAFICA!$C$9)","v":""}]
[null,"CHIEDE L'EROGAZIONE DEL 1° SAL"]
[null,"per un importo pari ad €",null,{"$f":"+F37+IF(E39=\"NO\",0,E40)","v":0},"così ripartito:"]
[null,{"$f":"IFERROR(_xlfn.CONCAT(\"- Investimenti: € \",IF(F37=0,0,TEXT(F37,\"#.##0.00,00\")),\" corrispondenti al \",TEXT(F37/ANAGRAFICA!C17,\"0,0%\"), \" del valore degli investimenti ammessi alle agevolazioni pari ad  € \",TEXT(ANAGRAFICA!C17,\"#.##0.00\"),\" e così suddivisi:\"),\"\")","v":""}]
[null,"- Fatture quietanzate pari ad €",null,{"$f":"SUMIFS(F34:F36,I34:I36,\"SI\")","v":0}]
[null,"- Fatture NON quietanzate pari ad €",null,{"$f":"SUMIFS(F34:F36,I34:I36,\"NO\")","v":0},null,{"$f":"IFERROR(IF(D20/ANAGRAFICA!C17>20%,\"Superato limite del 20% per il 1° SAL previsto dalla normativa\",\"\"),\"\")","v":""}]
[null,"- Capitale Circolante Netto:",null,{"$f":"+IF(E39=\"NO\",0,E40)","v":0}]
[null,{"$f":"+CONCATENATE(\"La somma eventualmente erogata dovrà essere accreditata sul c/c bancario intestato alla Società istituito presso l'istituto di credito \",ANAGRAFICA!K10,\" - Filiale/Agenzia \",ANAGRAFICA!K11)","v":"La somma eventualmente erogata dovrà essere accreditata sul c/c bancario intestato alla Società istituito presso l'istituto di credito  - Filiale/Agenzia "}]
[null,{"$f":"+CONCATENATE(\"IBAN di riferimento - \",ANAGRAFICA!K13)","v":"IBAN di riferimento - "}]
[null,"Detto conto corrente è dedicato, ancorché in via non esclusiva, al ricevimento delle agevolazioni concesse alla medesima società beneficiaria ai sensi del Decreto interministeriale MiSE - MEF 4 dicembre 2020."]
[]
[]
[]
[null,"DETTAGLIO FATTURE RENDICONTATE"]
[]
[null,"1. ELENCO COMPLESSIVO DELLE FATTURE RENDICONTATE"]
[null,{"$f":"+CONCATENATE(\"Valore minimo rendicontabile è pari ad € \",TEXT(ANAGRAFICA!C17*0.1,\"#.##0.00\"),\" ed il valore delle fatture non quietanzate non può essere superiore ad € \",TEXT(ANAGRAFICA!C17*0.2,\"#.##0.00\"))","v":"Valore minimo rendicontabile è pari ad € 000 ed il valore delle fatture non quietanzate non può essere superiore ad € 000"}]
[null,"RICHIESTA EROGAZIONE 1° SAL"]
[null,"N. fatt.","Fornitore ","Data fatt.","Descrizione","Imponibile SIVA","Importo IVA e altri oneri","Importo totale ","Quietanza Fatture","Categoria di spesa"]
[]
[]
[]
[null,null,null,null,null,{"$f":"SUM(F34:F36)","v":0}]
[]
[null,"Richiesta Capitale Circolante Netto",null,null,null,{"$f":"+IF(E39=\"SI\",CONCATENATE(\"Importo massimo richiedibile pari ad € \",TEXT(F37*ANAGRAFICA!F18,\"#.##0.00\")),\"\")","v":""}]
[null,"Valore CCN richiesto"]
[null,"La beneficiaria ha maturato e fruito di altre agevolazioni sui beni rendicontati"]
[]
[]
[null,"2. DETTAGLIO DELLE MODALITA' DI PAGAMENTO DELLE FATTURE QUIETANZATE"]
[null,"N. fatt.","Fornitore ","Data fatt.","Importo singolo pagamento","Modalità di pagamento","Data pagamento"]
[]
[]
[]
[null,null,null,null,{"$f":"SUM(E46:E48)","v":0}]
[null,"Tutte le fatture devono essere registrate nei libri contabili e/o registri fiscali previsti dal regime fiscale adottato e nel rispetto della normativa vigente"]
[]
[]
[]
[]
[]
[]
[]
[]
[]
[]
[null,null,"LUOGO E DATA",null,null,null,null,{"$f":"+CONCATENATE(\"FIRMA DIGITALE DEL \",ANAGRAFICA!C5)","v":"FIRMA DIGITALE DEL "}]
[null,null,{"$f":"+CONCATENATE(ANAGRAFICA!C8,\" \",TEXT(TODAY(),\"gg/mm/aaaa\"))","v":" 27/05/2024"}]
[]
[null,"LA RICHIESTA DI EROGAZIONE DEVE ESSERE CORREDATA PENA DECADENZA DALLA SEGUENTE DOCUMENTAZIONE"]
[]
[null,"DICHIARAZIONI RICHIESTE PER ANTIMAFIA"]
[null,"TIPOLOGIA SOCIETARIA",null,null,null,null,"Società","Coop"]
[null,"ANT 1 - Dichiarazione Antimafia Società",null,null,null,null,{"$f":"+IF(ANAGRAFICA!$H$6=\"\",\"\",IF(AND(ANAGRAFICA!$C$22>=150000,AND(ANAGRAFICA!$H$6<>\"Soc. Coop.\",ANAGRAFICA!$H$6<>\"Soc. Coop. STP\")),\"obbl.\",\"\"))","v":""}]
[null,"ANT 2- Dichiarazione Antimafia Cooperative",null,null,null,null,null,{"$f":"+IF(AND(ANAGRAFICA!$C$22>=150000,OR(ANAGRAFICA!$H$6=\"Soc. Coop.\",ANAGRAFICA!$H$6=\"Soc. Coop. STP\")),\"obbl.\",\"\")","v":""}]
[null,"ANT 3 - Familiari ",null,null,null,null,{"$f":"+IF(G68=\"obbl.\",\"obbl.\",\"\")","v":""},{"$f":"+IF(H69=\"obbl.\",\"obbl.\",\"\")","v":""}]
[]
[null,"GARANZIE"]
[null,"Privilegio Speciale",null,null,null,{"$f":"+IF(ANAGRAFICA!$C$20>=250000,\"Obbl.\",\"\")","v":""}]
[null,"Ipoteca 1° Grado immobile nel caso di acquisto di immobile (solo Capo III)",null,null,null,{"$f":"IF(COUNTIF('1°SAL'!J34:J36,APP!D2)>0,\"Obbl.\",0)","v":0}]
[]
[null,"DICHIARAZIONE SOSTITUTIVE ATTO NOTORIO"]
[null,"MOD 1 - Dichiarazioni Complessive",null,null,null,"Obbl."]
[null,"MOD 2 - Dichiarazione Fornitori",null,null,null,"Obbl."]
[null,"MOD 3 - Dichiarazione Assenza Precedenti",null,null,null,"Obbl."]
[null,"MOD 4 – Dichiarazioni Cedente",null,null,null,"Obbl. in caso di spese specifiche"]
[null,"MOD 5 – Dichiarazione Impegno Cessionario",null,null,null,"Obbl. in caso di spese specifiche"]
[null,"MOD 6 - Antiriciclaggio (solo progetti diversi da PNRR)",null,null,null,"Obbl."]
[null,"MOD 7 - PNRR (solo progetti PNRR)",null,null,null,"Obbl."]
[null,"MOD 9 - Dichiarazione DURC",null,null,null,"Obbl."]
[]
[null,"ATTESTAZIONI E DOCUMENTI"]
[null," - Copia di un documento di riconoscimento in corso di validità",null,null,null,"Obbl."]
[null," - Copia della polizza assicurativa, contro il rischio di incendio/accessori",null,null,null,"Obbl."]
[null," - Copia dei titoli di spesa delle spese agevolate  e della contrattualistica di fornitura [Nota: I titoli di spesa devono riportare, nell’oggetto o nel campo note, l’indicazione del codice CUP (Codice Unico progetto) o della misura agevolativa “Nuove imprese a Tasso Zero”]",null,null,null,"Obbl."]
[null," - Copia sottoscritta digitalmente dal Legale Rappresentante del libro cespiti ammortizzabili con evidenza delle registrazioni delle fatture rendicontate ",null,null,null,"Obbl."]
[null," - Copia sottoscritta digitalmente dal Legale Rappresentante del libro giornale, con evidenza delle registrazioni delle fatture rendicontate e, se quietanzate, dei relativi pagamenti",null,null,null,"Obbl."]
[null," - Copia sottoscritta digitalmente dal Legale Rappresentante degli estratti conto bancari con evidenza dei pagamenti effettuati rispetto alle:\n a) spese sostenute e richieste nel SAL in corso (Tab. 2)\n b) spese rendicontate nel SAL precedente e successivamente pagate (Tab. 3) (solo per i SAL successivi al 1°)",null,null,null,"Obbl."]
[null," - Situazione patrimoniale, all’ultima data utile, con evidenza dell'eventuale costituzione dell'impegno (rif. delibera assembleare)  ad effettuare l'apporto finanziario privato ed i relativi versamenti",null,null,null,"Obbl."]
[null," - Perizia Asseverata che attesti la rispondenza dell’immobile agli specifici vincoli edilizi, urbanistici e di destinazione d’uso ovvero la loro avvenuta richiesta, laddove gli stessi non siano stati ancora rilasciati",null,null,null,"Obbl."]
[null," - Attestazione della disponibilità dei locali idonei all’attività d’impresa, ivi inclusa la conformità degli stessi",null,null,null,"Obbl. se non già fornita"]
[null," - Relazione Tecnica del Direttore Lavori/Cantiere dello stato di avanzamento dei lavori connessi alle Opere Murarie (agevolate e non agevolate) relativa a:\n a) richieste e rilascio di permessi ed autorizzazioni abilitative all'avvio delle opere\n b) lavori realizzati\n c) lavori da realizzare\n d) variazioni eventuali intervenute in corso d'opera rispetto agli interventi approvati",null,null,null,"Obbl. in caso di spese per Opere Murarie"]
[null," - Copia dei contratti di acquisto dei beni mobili registrati e - in caso di mezzi targati - della carta di circolazione e del certificato di proprietà",null,null,null,"Obbl. in caso di spese specifiche"]
[null," - Attestazione dello stato di avanzamento degli interventi e della realizzazione del piano degli investimenti delle spese non agevolate (se previste), funzionali alla realizzazione del programma di investimento ",null,null,null,"Obbl. per spese realizzate ma non agevolate"]
[null,"- In caso di rendicontazione di spese relative ad attrezzature installate presso unità produttive diverse dall’unità interessata dal programma agevolato:\na) copia del libro dei beni prestati a terzi\nb) copia del titolo di disponibilità in uso a titolo gratuito, da parte del cessionario, delle attrezzature agevolate installate presso unità produttive diverse dall’unità produttiva interessata dal programma agevolato\nc) copia dei documenti di trasporto tenuti ai sensi del D.P.R. 6 ottobre 1978, n. 627, e del D.M. 29 novembre 1978 e ss.mm.ii., da cui risulta l’ubicazione di ciascun bene",null,null,null,"Obbl. in caso di spese specifiche"]
[]
[]
[null,null,"LUOGO E DATA",null,null,null,null,{"$f":"+H61","v":"FIRMA DIGITALE DEL "}]
[null,null,{"$f":"+CONCATENATE(ANAGRAFICA!C46,\" \",TEXT(TODAY(),\"gg/mm/aaaa\"))","v":" 27/05/2024"}]

{"sheet":"1°SAL_Credito","index":6,"n_rows":15,"n_cols":12,"rows_kept":15,"cut":false,"hidden":false,"merged":[[3,1,3,11],[11,1,11,11],[13,6,14,11]]}
[]
[]
[]
[null,"Dettaglio delle agevolazione fruite sui beni oggetto dell'investimento"]
[null,"N. fatt.","Fornitore ","Data fatt.","Bene","Valore Imponibile  Bene","Tipo di agevolazione","Agevolazione maturata totale","di cui fruita (rif. compensazioni)\n(A)","Vantaggio fiscale (es. IRES/IRAP) su agevolazione fruita\n(B)","Totale ulteriori agevolazioni fruite\n(A+B)","CUP (ove presente)"]
[]
[]
[]
[null,null,null,null,null,{"$f":"+SUM(F6:F8)","v":0},null,{"$f":"+SUM(H6:H8)","v":0},{"$f":"+SUM(I6:I8)","v":0},{"$f":"+SUM(J6:J8)","v":0},{"$f":"+SUM(K6:K8)","v":0}]
[]
[]
[null,"La tabella deve riepilogare i beni oggetto di altre agevolazione (credito di imposta, fondi regionali ecc..), indicando le relative fatture e fornitore. Pertanto beni/fatture che non si riferiscono a beni oggetto di altre agevolazioni non dovranno essere elencati/e."]
[]
[null,"LUOGO E DATA",null,null,null,null,{"$f":"+CONCATENATE(\"FIRMA DIGITALE DEL \",ANAGRAFICA!C5)","v":"FIRMA DIGITALE DEL "}]
[null,{"$f":"+CONCATENATE(ANAGRAFICA!C8,\" \",TEXT(TODAY(),\"gg/mm/aaaa\"))","v":" 27/05/2024"}]

{"sheet":"2°SAL","index":7,"n_rows":105,"n_cols":10,"rows_kept":105,"cut":false,"hidden":false,"merged":[[103,7,104,9],[64,1,64,7],[48,1,49,9],[93,1,93,4],[94,1,94,4],[95,1,95,4],[96,1,96,4],[97,1,97,4],[88,1,88,4],[89,1,89,4],[90,1,90,4],[91,1,91,4],[92,1,92,4],[87,1,87,4],[79,1,79,4],[84,1,84,5],[15,1,15,9],[19,5,19,9],[40,1,40,3],[76,1,76,4],[30,1,30,9],[65,1,65,5],[62,1,62,9],[51,1,51,9],[59,7,60,9],[58,7,58,9],[17,1,17,9],[22,1,22,9],[23,1,25,9],[9,1,10,1],[9,2,10,9],[12,2,12,3],[12,6,12,9],[14,2,14,9],[1,1,1,9],[3,2,3,7],[5,1,5,6],[5,7,5,9],[7,1,7,9],[86,1,86,4],[27,1,27,9],[21,1,21,9],[85,1,85,4],[70,1,70,5],[71,1,71,4],[77,1,77,4],[78,1,78,4],[75,1,75,4],[74,1,74,5],[80,1,80,4],[81,1,81,4],[82,1,82,4]]}
[]
[" ","RICHIESTA EROGAZIONE 2° SAL "]
[]
[null,"La Società",{"$f":"+IF(ANAGRAFICA!C6=\"\",\"\",ANAGRAFICA!C6)","v":""},null,null,null,null,null,"Progetto N.",{"$f":"+IF(ANAGRAFICA!C2=\"\",\"\",ANAGRAFICA!C2)","v":""}]
[]
[null,"nella persona del ",null,null,null,null,null,{"$f":"+IF(ANAGRAFICA!C5=\"\",\"\",ANAGRAFICA!C5)","v":""}]
[]
[null,{"$f":"IF(OR(ANAGRAFICA!C3=\"\",ANAGRAFICA!C4=\"\"),\"\",CONCATENATE(ANAGRAFICA!C3, \" codice fiscale \",ANAGRAFICA!C4))","v":""}]
[]
[null,"Sede in",{"$f":"+IF(OR(ANAGRAFICA!C7=\"\",ANAGRAFICA!C8=\"\",ANAGRAFICA!H8=\"\"),\"\",CONCATENATE(ANAGRAFICA!C7,\" - \",ANAGRAFICA!C8,\" (\",ANAGRAFICA!H8,\")\"))","v":""}]
[]
[]
[null,"Partita IVA",{"$f":"+IF(ANAGRAFICA!C11=\"\",\"\",ANAGRAFICA!C11)","v":""},null,null,"CCIAA",{"$f":"+IF(OR(ANAGRAFICA!C12=\"\",ANAGRAFICA!E12=\"\"),\"\",CONCATENATE(ANAGRAFICA!C12,\" al N° \",ANAGRAFICA!E12))","v":""}]
[]
[null,"PEC",{"$f":"+IF(ANAGRAFICA!$C$9=\"\",\"\",ANAGRAFICA!$C$9)","v":""}]
[null,"CHIEDE L'EROGAZIONE DEL 2° SAL"]
[null,"per un importo pari ad €",null,{"$f":"+F37+IF(E39=\"NO\",0,E40)","v":0},"così ripartito:"]
[null,{"$f":"IFERROR(_xlfn.CONCAT(\"- Investimenti: € \",IF(F37=0,0,TEXT(F37,\"#.##0.00,00\")),\" corrispondenti al \",TEXT(F37/ANAGRAFICA!C17,\"0,0%\"), \" del valore degli investimenti ammessi alle agevolazioni pari ad  € \",TEXT(ANAGRAFICA!C17,\"#.##0.00\"),\" e così suddivisi:\"),\"\")","v":""}]
[null,"- Fatture quietanzate pari ad €",null,{"$f":"SUMIFS(F34:F36,I34:I36,\"SI\")","v":0}]
[null,"- Fatture NON quietanzate pari ad €",null,{"$f":"SUMIFS(F34:F36,I34:I36,\"NO\")","v":0},null,{"$f":"IFERROR(IF(D20/ANAGRAFICA!C17>30%,\"Superato limite del 30% per il 2° SAL previsto dalla normativa\",\"\"),\"\")","v":""}]
[null,"- Capitale Circolante Netto:",null,{"$f":"+IF(E39=\"NO\",0,E40)","v":0}]
[null,{"$f":"+CONCATENATE(\"La somma eventualmente erogata dovrà essere accreditata sul c/c bancario intestato alla Società istituito presso l'istituto di credito \",ANAGRAFICA!K10,\" - Filiale/Agenzia \",ANAGRAFICA!K11)","v":"La somma eventualmente erogata dovrà essere accreditata sul c/c bancario intestato alla Società istituito presso l'istituto di credito  - Filiale/Agenzia "}]
[null,{"$f":"+CONCATENATE(\"IBAN di riferimento - \",ANAGRAFICA!K13)","v":"IBAN di riferimento - "}]
[null,"Detto conto corrente è dedicato, ancorché in via non esclusiva, al ricevimento delle agevolazioni concesse alla medesima società beneficiaria ai sensi del Decreto interministeriale MiSE - MEF 4 dicembre 2020."]
[]
[]
[]
[null,"DETTAGLIO FATTURE RENDICONTATE"]
[]
[null,"1. ELENCO COMPLESSIVO DELLE FATTURE RENDICONTATE"]
[null,{"$f":"+CONCATENATE(\"Valore minimo rendicontabile è pari ad € \",TEXT(ANAGRAFICA!C17*0.1,\"#.##0.00\"),\" ed il valore delle fatture non quietanzate non può essere superiore ad € \",TEXT(ANAGRAFICA!C17*0.3,\"#.##0.00\"))","v":"Valore minimo rendicontabile è pari ad € 000 ed il valore delle fatture non quietanzate non può essere superiore ad € 000"}]
[null,"RICHIESTA EROGAZIONE 2° SAL B37"]
[null,"N. fatt.","Fornitore ","Data fatt.","Descrizione","Imponibile SIVA","Importo IVA e altri oneri","Importo totale ","Quietanza Fatture","Categoria di spesa"]
[]
[]
[]
[null,null,null,null,null,{"$f":"SUM(F34:F36)","v":0}]
[]
[null,"Richiesta Capitale Circolante Netto",null,null,null,{"$f":"+IF(E39=\"SI\",CONCATENATE(\"Importo massimo richiedibile pari ad € \",TEXT(F37*ANAGRAFICA!F18,\"#.##0.00\")),\"\")","v":""}]
[null,"Valore CCN richiesto"]
[null,"La beneficiaria ha maturato e fruito di altre agevolazioni sui beni rendicontati"]
[]
[null,"2. DETTAGLIO DELLE MODALITA' DI PAGAMENTO DELLE FATTURE QUIETANZATE"]
[null,"N. fatt.","Fornitore ","Data fatt.","Importo singolo pagamento","Modalità di pagamento","Data pagamento"]
[]
[]
[]
[null,null,null,null,{"$f":"SUM(E45:E47)","v":0}]
[null,"Tutte le fatture devono essere registrate nei libri contabili e/o registri fiscali previsti dal regime fiscale adottato e nel rispetto della normativa vigente"]
[]
[null,"3. DETTAGLIO PAGAMENTI FATTURE NON QUIETANZATE DEL PRECEDENTE SAL"]
[null,{"$f":"+IF(NAVIGATORE!G14-NAVIGATORE!K14,CONCATENATE(\"Evidenza dell'avvenuto pagamento delle fatture rendicontate nel precedente SAL pari ad €  \",TEXT(NAVIGATORE!G20,\"0.00\"),\"\"),\"\")","v":""}]
[]
[null,"N. fatt.","Fornitore ","Data fatt.","Importo singolo pagamento","Modalità di pagamento","Data pagamento"]
[]
[]
[]
[null,null,null,null,{"$f":"SUM(E55:E57)","v":0}]
[]
[null,null,"LUOGO E DATA",null,null,null,null,{"$f":"+CONCATENATE(\"FIRMA DIGITALE DEL \",ANAGRAFICA!C5)","v":"FIRMA DIGITALE DEL "}]
[null,null,{"$f":"+CONCATENATE(ANAGRAFICA!C8,\" \",TEXT(TODAY(),\"gg/mm/aaaa\"))","v":" 27/05/2024"}]
[]
[null,"LA RICHIESTA DI EROGAZIONE DEVE ESSERE CORREDATA PENA DECADENZA DALLA SEGUENTE DOCUMENTAZIONE"]
[]
[null,"DICHIARAZIONI RICHIESTE PER ANTIMAFIA"]
[null,"TIPOLOGIA SOCIETARIA",null,null,null,null,"Società","Coop"]
[null,"ANT 1 - Dichiarazione Antimafia Società",null,null,null,null,{"$f":"+IF(ANAGRAFICA!$H$6=\"\",\"\",IF(AND(ANAGRAFICA!$C$22>=150000,AND(ANAGRAFICA!$H$6<>\"Soc. Coop.\",ANAGRAFICA!$H$6<>\"Soc. Coop. STP\")),\"obbl.\",\"\"))","v":""}]
[null,"ANT 2- Dichiarazione Antimafia Cooperative",null,null,null,null,null,{"$f":"+IF(AND(ANAGRAFICA!$C$22>=150000,OR(ANAGRAFICA!$H$6=\"Soc. Coop.\",ANAGRAFICA!$H$6=\"Soc. Coop. STP\")),\"obbl.\",\"\")","v":""}]
[null,"ANT 3 - Familiari ",null,null,null,null,{"$f":"+IF(G67=\"obbl.\",\"obbl.\",\"\")","v":""},{"$f":"+IF(H68=\"obbl.\",\"obbl.\",\"\")","v":""}]
[]
[null,"GARANZIE"]
[null,"Privilegio Speciale",null,null,null,{"$f":"+IF(ANAGRAFICA!$C$20>=250000,\"Obbl.\",\"\")","v":""}]
[]
[]
[null,"DICHIARAZIONE SOSTITUTIVE ATTO NOTORIO"]
[null,"MOD 1 - Dichiarazioni Complessive",null,null,null,"Obbl."]
[null,"MOD 2 - Dichiarazione Fornitori",null,null,null,"Obbl."]
[null,"MOD 3 - Dichiarazione Assenza Precedenti",null,null,null,"Obbl."]
[null,"MOD 4 – Dichiarazioni Cedente",null,null,null,"Obbl. in caso di spese specifiche"]
[null,"MOD 5 – Dichiarazione Impegno Cessionario",null,null,null,"Obbl. in caso di spese specifiche"]
[null,"MOD 6 - Antiriciclaggio (solo progetti diversi da PNRR)",null,null,null,"Obbl."]
[null,"MOD 7 - PNRR (solo progetti PNRR)",null,null,null,"Obbl."]
[null,"MOD 9 - Dichiarazione DURC",null,null,null,"Obbl."]
[]
[null,"ATTESTAZIONI E DOCUMENTI"]
[null," - Copia di un documento di riconoscimento in corso di validità",null,null,null,"Obbl."]
[null," - Copia della polizza assicurativa, contro il rischio di incendio/accessori",null,null,null,"Obbl."]
[null," - Copia dei titoli di spesa delle spese agevolate  e della contrattualistica di fornitura [Nota: I titoli di spesa devono riportare, nell’oggetto o nel campo note, l’indicazione del codice CUP (Codice Unico progetto) o della misura agevolativa “Nuove imprese a Tasso Zero”]",null,null,null,"Obbl."]
[null," - Copia sottoscritta digitalmente dal Legale Rappresentante del libro cespiti ammortizzabili con evidenza delle registrazioni delle fatture rendicontate ",null,null,null,"Obbl."]
[null," - Copia sottoscritta digitalmente dal Legale Rappresentante del libro giornale, con evidenza delle registrazioni delle fatture rendicontate e, se quietanzate, dei relativi pagamenti",null,null,null,"Obbl."]
[null," - Copia sottoscritta digitalmente dal Legale Rappresentante degli estratti conto bancari con evidenza dei pagamenti effettuati rispetto alle:\n a) spese sostenute e richieste nel SAL in corso (Tab. 2)\n b) spese rendicontate nel SAL precedente e successivamente pagate (Tab. 3) (solo per i SAL successivi al 1°)",null,null,null,"Obbl."]
[null," - Situazione patrimoniale, all’ultima data utile, con evidenza dell'eventuale costituzione dell'impegno (rif. delibera assembleare)  ad effettuare l'apporto finanziario privato ed i relativi versamenti",null,null,null,"Obbl."]
[]
[]
[null," - Relazione Tecnica del Direttore Lavori/Cantiere dello stato di avanzamento dei lavori connessi alle Opere Murarie (agevolate e non agevolate) relativa a:\n a) richieste e rilascio di permessi ed autorizzazioni abilitative all'avvio delle opere\n b) lavori realizzati\n c) lavori da realizzare\n d) variazioni eventuali intervenute in corso d'opera rispetto agli interventi approvati",null,null,null,"Obbl. in caso di spese per Opere Murarie"]
[null," - Copia dei contratto di acquisto dei beni mobili registrati e - in caso di mezzi targati - della carta di circolazione e del certificato di proprietà",null,null,null,"Obbl. in caso di spese specifiche"]
[null," - Attestazione dello stato di avanzamento degli interventi e della realizzazione del piano degli investimenti delle spese non agevolate (se previste), funzionali alla realizzazione del programma di investimento ",null,null,null,"Obbl. per spese realizzate ma non agevolate"]
[null,"- In caso di rendicontazione di spese relative ad attrezzature installate presso unità produttive diverse dall’unità interessata dal programma agevolato:\na) copia del libro dei beni prestati a terzi\nb) copia del titolo di disponibilità in uso a titolo gratuito, da parte del cessionario, delle attrezzature agevolate installate presso unità produttive diverse dall’unità produttiva interessata dal programma agevolato\nc) copia dei documenti di trasporto tenuti ai sensi del D.P.R. 6 ottobre 1978, n. 627, e del D.M. 29 novembre 1978 e ss.mm.ii., da cui risulta l’ubicazione di ciascun bene",null,null,null,"Obbl. in caso di spese specifiche"]
[]
[]
[]
[]
[]
[null,null,"LUOGO E DATA",null,null,null,null,{"$f":"+H60","v":"FIRMA DIGITALE DEL "}]
[null,null,{"$f":"+CONCATENATE(ANAGRAFICA!C43,\" \",TEXT(TODAY(),\"gg/mm/aaaa\"))","v":" 27/05/2024"}]

{"sheet":"2°SAL_Credito","index":8,"n_rows":15,"n_cols":12,"rows_kept":15,"cut":false,"hidden":false,"merged":[[3,1,3,11],[11,1,11,11],[13,6,14,11]]}
[]
[]
[]
[null,"Dettaglio delle agevolazione fruite sui beni oggetto dell'investimento"]
[null,"N. fatt.","Fornitore ","Data fatt.","Bene","Valore Imponibile  Bene","Tipo di agevolazione","Agevolazione maturata totale","di cui fruita (rif. compensazioni)\n(A)","Vantaggio fiscale (es. IRES/IRAP) su agevolazione fruita\n(B)","Totale ulteriori agevolazioni fruite\n(A+B)","CUP (ove presente)"]
[]
[]
[]
[null,null,null,null,null,{"$f":"+SUM(F6:F8)","v":0},null,{"$f":"+SUM(H6:H8)","v":0},{"$f":"+SUM(I6:I8)","v":0},{"$f":"+SUM(J6:J8)","v":0},{"$f":"+SUM(K6:K8)","v":0}]
[]
[]
[null,"La tabella deve riepilogare i beni oggetto di altre agevolazione (credito di imposta, fondi regionali ecc..), indicando le relative fatture e fornitore. Pertanto beni/fatture che non si riferiscono a beni oggetto di altre agevolazioni non dovranno essere elencati/e."]
[]
[null,"LUOGO E DATA",null,null,null,null,{"$f":"+CONCATENATE(\"FIRMA DIGITALE DEL \",ANAGRAFICA!C5)","v":"FIRMA DIGITALE DEL "}]
[null,{"$f":"+CONCATENATE(ANAGRAFICA!C8,\" \",TEXT(TODAY(),\"gg/mm/aaaa\"))","v":" 27/05/2024"}]

{"sheet":"3°SAL","index":9,"n_rows":105,"n_cols":10,"rows_kept":105,"cut":false,"hidden":false,"merged":[[103,7,104,9],[64,1,64,7],[48,1,49,9],[93,1,93,4],[94,1,94,4],[95,1,95,4],[96,1,96,4],[97,1,97,4],[88,1,88,4],[89,1,89,4],[90,1,90,4],[91,1,91,4],[87,1,87,4],[92,1,92,4],[86,1,86,4],[79,1,79,4],[15,1,15,9],[19,5,19,9],[30,1,30,9],[27,1,27,9],[21,1,21,9],[17,1,17,9],[22,1,22,9],[23,1,25,9],[9,1,10,1],[9,2,10,9],[12,2,12,3],[12,6,12,9],[14,2,14,9],[1,1,1,9],[3,2,3,7],[5,1,5,6],[5,7,5,9],[7,1,7,9],[40,1,40,3],[65,1,65,5],[62,1,62,9],[51,1,51,9],[59,7,60,9],[58,7,58,9],[84,1,84,5],[85,1,85,4],[70,1,70,5],[74,1,74,5],[77,1,77,4],[75,1,75,4],[71,1,71,4],[78,1,78,4],[76,1,76,4],[80,1,80,4],[81,1,81,4],[82,1,82,4]]}
[]
[" ","RICHIESTA EROGAZIONE 3° SAL"]
[]
[null,"La Società",{"$f":"+IF(ANAGRAFICA!C6=\"\",\"\",ANAGRAFICA!C6)","v":""},null,null,null,null,null,"Progetto N.",{"$f":"+IF(ANAGRAFICA!C2=\"\",\"\",ANAGRAFICA!C2)","v":""}]
[]
[null,"nella persona del ",null,null,null,null,null,{"$f":"+IF(ANAGRAFICA!C5=\"\",\"\",ANAGRAFICA!C5)","v":""}]
[]
[null,{"$f":"IF(OR(ANAGRAFICA!C3=\"\",ANAGRAFICA!C4=\"\"),\"\",CONCATENATE(ANAGRAFICA!C3, \" codice fiscale \",ANAGRAFICA!C4))","v":""}]
[]
[null,"Sede in",{"$f":"+IF(OR(ANAGRAFICA!C7=\"\",ANAGRAFICA!C8=\"\",ANAGRAFICA!H8=\"\"),\"\",CONCATENATE(ANAGRAFICA!C7,\" - \",ANAGRAFICA!C8,\" (\",ANAGRAFICA!H8,\")\"))","v":""}]
[]
[]
[null,"Partita IVA",{"$f":"+IF(ANAGRAFICA!C11=\"\",\"\",ANAGRAFICA!C11)","v":""},null,null,"CCIAA",{"$f":"+IF(OR(ANAGRAFICA!C12=\"\",ANAGRAFICA!E12=\"\"),\"\",CONCATENATE(ANAGRAFICA!C12,\" al N° \",ANAGRAFICA!E12))","v":""}]
[]
[null,"PEC",{"$f":"+IF(ANAGRAFICA!$C$9=\"\",\"\",ANAGRAFICA!$C$9)","v":""}]
[null,"CHIEDE L'EROGAZIONE DEL 3° SAL"]
[null,"per un importo pari ad €",null,{"$f":"+F37+IF(E39=\"NO\",0,E40)","v":0},"così ripartito:"]
[null,{"$f":"IFERROR(_xlfn.CONCAT(\"- Investimenti: € \",IF(F37=0,0,TEXT(F37,\"#.##0.00,00\")),\" corrispondenti al \",TEXT(F37/ANAGRAFICA!C17,\"0,0%\"), \" del valore degli investimenti ammessi alle agevolazioni pari ad  € \",TEXT(ANAGRAFICA!C17,\"#.##0.00\"),\" e così suddivisi:\"),\"\")","v":""}]
[null,"- Fatture quietanzate pari ad €",null,{"$f":"SUMIFS(F34:F36,I34:I36,\"SI\")","v":0}]
[null,"- Fatture NON quietanzate pari ad €",null,{"$f":"SUMIFS(F34:F36,I34:I36,\"NO\")","v":0},null,{"$f":"IFERROR(IF(D20/ANAGRAFICA!C17>30%,\"Superato limite del 30% per il 3° SAL previsto dalla normativa\",\"\"),\"\")","v":""}]
[null,"- Capitale Circolante Netto:",null,{"$f":"+IF(E39=\"NO\",0,E40)","v":0}]
[null,{"$f":"+CONCATENATE(\"La somma eventualmente erogata dovrà essere accreditata sul c/c bancario intestato alla Società istituito presso l'istituto di credito \",ANAGRAFICA!K10,\" - Filiale/Agenzia \",ANAGRAFICA!K11)","v":"La somma eventualmente erogata dovrà essere accreditata sul c/c bancario intestato alla Società istituito presso l'istituto di credito  - Filiale/Agenzia "}]
[null,{"$f":"+CONCATENATE(\"IBAN di riferimento - \",ANAGRAFICA!K13)","v":"IBAN di riferimento - "}]
[null,"Detto conto corrente è dedicato, ancorché in via non esclusiva, al ricevimento delle agevolazioni concesse alla medesima società beneficiaria ai sensi del Decreto interministeriale MiSE - MEF 4 dicembre 2020."]
[]
[]
[]
[null,"DETTAGLIO FATTURE RENDICONTATE"]
[]
[null,"1. ELENCO COMPLESSIVO DELLE FATTURE RENDICONTATE"]
[null,{"$f":"+CONCATENATE(\"Valore minimo rendicontabile è pari ad € \",TEXT(ANAGRAFICA!C17*0.1,\"#.##0.00\"),\" ed il valore delle fatture non quietanzate non può essere superiore ad € \",TEXT(ANAGRAFICA!C17*0.3,\"#.##0.00\"))","v":"Valore minimo rendicontabile è pari ad € 000 ed il valore delle fatture non quietanzate non può essere superiore ad € 000"}]
[]
[null,"N. fatt.","Fornitore ","Data fatt.","Descrizione","Imponibile SIVA","Importo IVA e altri oneri","Importo totale ","Quietanza Fatture","Categoria di spesa"]
[]
[]
[]
[null,null,null,null,null,{"$f":"SUM(F34:F36)","v":0}]
[]
[null,"Richiesta Capitale Circolante Netto",null,null,null,{"$f":"+IF(E39=\"SI\",CONCATENATE(\"Importo massimo richiedibile pari ad € \",TEXT(F37*ANAGRAFICA!F18,\"#.##0.00\")),\"\")","v":""}]
[null,"Valore CCN richiesto"]
[null,"La beneficiaria ha maturato e fruito di altre agevolazioni sui beni rendicontati"]
[]
[null,"2. DETTAGLIO DELLE MODALITA' DI PAGAMENTO DELLE FATTURE QUIETANZATE"]
[null,"N. fatt.","Fornitore ","Data fatt.","Importo singolo pagamento","Modalità di pagamento","Data pagamento"]
[]
[]
[]
[null,null,null,null,{"$f":"SUM(E45:E47)","v":0}]
[null,"Tutte le fatture devono essere registrate nei libri contabili e/o registri fiscali previsti dal regime fiscale adottato e nel rispetto della normativa vigente"]
[]
[null,"3. DETTAGLIO PAGAMENTI FATTURE NON QUIETANZATE DEL PRECEDENTE SAL"]
[null,{"$f":"+IF(NAVIGATORE!G14-NAVIGATORE!K14,CONCATENATE(\"Evidenza dell'avvenuto pagamento delle fatture rendicontate nel precedente SAL pari ad €  \",TEXT(NAVIGATORE!G21,\"0.00\"),\"\"),\"\")","v":""}]
[]
[null,"N. fatt.","Fornitore ","Data fatt.","Importo singolo pagamento","Modalità di pagamento","Data pagamento"]
[]
[]
[]
[null,null,null,null,{"$f":"SUM(E55:E57)","v":0}]
[]
[null,null,"LUOGO E DATA",null,null,null,null,{"$f":"+CONCATENATE(\"FIRMA DIGITALE DEL \",ANAGRAFICA!C5)","v":"FIRMA DIGITALE DEL "}]
[null,null,{"$f":"+CONCATENATE(ANAGRAFICA!C8,\" \",TEXT(TODAY(),\"gg/mm/aaaa\"))","v":" 27/05/2024"}]
[]
[null,"LA RICHIESTA DI EROGAZIONE DEVE ESSERE CORREDATA PENA DECADENZA DALLA SEGUENTE DOCUMENTAZIONE"]
[]
[null,"DICHIARAZIONI RICHIESTE PER ANTIMAFIA"]
[null,"TIPOLOGIA SOCIETARIA",null,null,null,null,"Società","Coop"]
[null,"ANT 1 - Dichiarazione Antimafia Società",null,null,null,null,{"$f":"+IF(ANAGRAFICA!$H$6=\"\",\"\",IF(AND(ANAGRAFICA!$C$22>=150000,AND(ANAGRAFICA!$H$6<>\"Soc. Coop.\",ANAGRAFICA!$H$6<>\"Soc. Coop. STP\")),\"obbl.\",\"\"))","v":""}]
[null,"ANT 2- Dichiarazione Antimafia Cooperative",null,null,null,null,null,{"$f":"+IF(AND(ANAGRAFICA!$C$22>=150000,OR(ANAGRAFICA!$H$6=\"Soc. Coop.\",ANAGRAFICA!$H$6=\"Soc. Coop. STP\")),\"obbl.\",\"\")","v":""}]
[null,"ANT 3 - Familiari ",null,null,null,null,{"$f":"+IF(G67=\"obbl.\",\"obbl.\",\"\")","v":""},{"$f":"+IF(H68=\"obbl.\",\"obbl.\",\"\")","v":""}]
[]
[null,"GARANZIE"]
[null,"Privilegio Speciale",null,null,null,{"$f":"+IF(ANAGRAFICA!$C$20>=250000,\"Obbl.\",\"\")","v":""}]
[]
[]
[null,"DICHIARAZIONE SOSTITUTIVE ATTO NOTORIO"]
[null,"MOD 1 - Dichiarazioni Complessive",null,null,null,"Obbl."]
[null,"MOD 2 - Dichiarazione Fornitori",null,null,null,"Obbl."]
[null,"MOD 3 - Dichiarazione Assenza Precedenti",null,null,null,"Obbl."]
[null,"MOD 4 – Dichiarazioni Cedente",null,null,null,"Obbl. in caso di spese specifiche"]
[null,"MOD 5 – Dichiarazione Impegno Cessionario",null,null,null,"Obbl. in caso di spese specifiche"]
[null,"MOD 6 - Antiriciclaggio (solo progetti diversi da PNRR)",null,null,null,"Obbl."]
[null,"MOD 7 - PNRR (solo progetti PNRR)",null,null,null,"Obbl."]
[null,"MOD 9 - Dichiarazione DURC",null,null,null,"Obbl."]
[]
[null,"ATTESTAZIONI E DOCUMENTI"]
[null," - Copia di un documento di riconoscimento in corso di validità",null,null,null,"Obbl."]
[null," - Copia della polizza assicurativa, contro il rischio di incendio/accessori",null,null,null,"Obbl."]
[null," - Copia dei titoli di spesa delle spese agevolate  e della contrattualistica di fornitura [Nota: I titoli di spesa devono riportare, nell’oggetto o nel campo note, l’indicazione del codice CUP (Codice Unico progetto) o della misura agevolativa “Nuove imprese a Tasso Zero”]",null,null,null,"Obbl."]
[null," - Copia sottoscritta digitalmente dal Legale Rappresentante del libro cespiti ammortizzabili con evidenza delle registrazioni delle fatture rendicontate ",null,null,null,"Obbl."]
[null," - Copia sottoscritta digitalmente dal Legale Rappresentante del libro giornale, con evidenza delle registrazioni delle fatture rendicontate e, se quietanzate, dei relativi pagamenti",null,null,null,"Obbl."]
[null," - Copia sottoscritta digitalmente dal Legale Rappresentante degli estratti conto bancari con evidenza dei pagamenti effettuati rispetto alle:\n a) spese sostenute e richieste nel SAL in corso (Tab. 2)\n b) spese rendicontate nel SAL precedente e successivamente pagate (Tab. 3) (solo per i SAL successivi al 1°)",null,null,null,"Obbl."]
[null," - Situazione patrimoniale, all’ultima data utile, con evidenza dell'eventuale costituzione dell'impegno (rif. delibera assembleare)  ad effettuare l'apporto finanziario privato ed i relativi versamenti",null,null,null,"Obbl."]
[]
[]
[null," - Relazione Tecnica del Direttore Lavori/Cantiere dello stato di avanzamento dei lavori connessi alle Opere Murarie (agevolate e non agevolate) relativa a:\n a) richieste e rilascio di permessi ed autorizzazioni abilitative all'avvio delle opere\n b) lavori realizzati\n c) lavori da realizzare\n d) variazioni eventuali intervenute in corso d'opera rispetto agli interventi approvati",null,null,null,"Obbl. in caso di spese per Opere Murarie"]
[null," - Copia dei contratto di acquisto dei beni mobili registrati e - in caso di mezzi targati - della carta di circolazione e del certificato di proprietà",null,null,null,"Obbl. in caso di spese specifiche"]
[null," - Attestazione dello stato di avanzamento degli interventi e della realizzazione del piano degli investimenti delle spese non agevolate (se previste), funzionali alla realizzazione del programma di investimento ",null,null,null,"Obbl. per spese realizzate ma non agevolate"]
[null,"- In caso di rendicontazione di spese relative ad attrezzature installate presso unità produttive diverse dall’unità interessata dal programma agevolato:\na) copia del libro dei beni prestati a terzi\nb) copia del titolo di disponibilità in uso a titolo gratuito, da parte del cessionario, delle attrezzature agevolate installate presso unità produttive diverse dall’unità produttiva interessata dal programma agevolato\nc) copia dei documenti di trasporto tenuti ai sensi del D.P.R. 6 ottobre 1978, n. 627, e del D.M. 29 novembre 1978 e ss.mm.ii., da cui risulta l’ubicazione di ciascun bene",null,null,null,"Obbl. in caso di spese specifiche"]
[]
[]
[]
[]
[]
[null,null,"LUOGO E DATA",null,null,null,null,{"$f":"+H60","v":"FIRMA DIGITALE DEL "}]
[null,null,{"$f":"+CONCATENATE(ANAGRAFICA!C43,\" \",TEXT(TODAY(),\"gg/mm/aaaa\"))","v":" 27/05/2024"}]

{"sheet":"3°SAL_Credito","index":10,"n_rows":15,"n_cols":12,"rows_kept":15,"cut":false,"hidden":false,"merged":[[3,1,3,11],[11,1,11,11],[13,6,14,11]]}
[]
[]
[]
[null,"Dettaglio delle agevolazione fruite sui beni oggetto dell'investimento"]
[null,"N. fatt.","Fornitore ","Data fatt.","Bene","Valore Imponibile  Bene","Tipo di agevolazione","Agevolazione maturata totale","di cui fruita (rif. compensazioni)\n(A)","Vantaggio fiscale (es. IRES/IRAP) su agevolazione fruita\n(B)","Totale ulteriori agevolazioni fruite\n(A+B)","CUP (ove presente)"]
[]
[]
[]
[null,null,null,null,null,{"$f":"+SUM(F6:F8)","v":0},null,{"$f":"+SUM(H6:H8)","v":0},{"$f":"+SUM(I6:I8)","v":0},{"$f":"+SUM(J6:J8)","v":0},{"$f":"+SUM(K6:K8)","v":0}]
[]
[]
[null,"La tabella deve riepilogare i beni oggetto di altre agevolazione (credito di imposta, fondi regionali ecc..), indicando le relative fatture e fornitore. Pertanto beni/fatture che non si riferiscono a beni oggetto di altre agevolazioni non dovranno essere elencati/e."]
[]
[null,"LUOGO E DATA",null,null,null,null,{"$f":"+CONCATENATE(\"FIRMA DIGITALE DEL \",ANAGRAFICA!C5)","v":"FIRMA DIGITALE DEL "}]
[null,{"$f":"+CONCATENATE(ANAGRAFICA!C8,\" \",TEXT(TODAY(),\"gg/mm/aaaa\"))","v":" 27/05/2024"}]

{"sheet":"4°SAL","index":11,"n_rows":105,"n_cols":10,"rows_kept":105,"cut":false,"hidden":false,"merged":[[17,1,17,9],[93,1,93,4],[94,1,94,4],[95,1,95,4],[88,1,88,4],[89,1,89,4],[90,1,90,4],[91,1,91,4],[92,1,92,4],[77,1,77,4],[78,1,78,4],[74,1,74,5],[75,1,75,4],[76,1,76,4],[103,7,104,9],[64,1,64,7],[96,1,96,4],[97,1,97,4],[21,1,21,9],[70,1,70,5],[71,1,71,4],[48,1,49,9],[40,1,40,3],[80,1,80,4],[81,1,81,4],[82,1,82,4],[1,1,1,9],[3,2,3,7],[5,1,5,6],[5,7,5,9],[7,1,7,9],[9,1,10,1],[9,2,10,9],[12,2,12,3],[12,6,12,9],[14,2,14,9],[15,1,15,9],[19,5,19,9],[86,1,86,4],[87,1,87,4],[65,1,65,5],[62,1,62,9],[22,1,22,9],[23,1,25,9],[51,1,51,9],[30,1,30,9],[59,7,60,9],[27,1,27,9],[58,7,58,9],[79,1,79,4],[84,1,84,5],[85,1,85,4]]}
[]
[" ","RICHIESTA EROGAZIONE 4° SAL"]
[]
[null,"La Società",{"$f":"+IF(ANAGRAFICA!C6=\"\",\"\",ANAGRAFICA!C6)","v":""},null,null,null,null,null,"Progetto N.",{"$f":"+IF(ANAGRAFICA!C2=\"\",\"\",ANAGRAFICA!C2)","v":""}]
[]
[null,"nella persona del ",null,null,null,null,null,{"$f":"+IF(ANAGRAFICA!C5=\"\",\"\",ANAGRAFICA!C5)","v":""}]
[]
[null,{"$f":"IF(OR(ANAGRAFICA!C3=\"\",ANAGRAFICA!C4=\"\"),\"\",CONCATENATE(ANAGRAFICA!C3, \" codice fiscale \",ANAGRAFICA!C4))","v":""}]
[]
[null,"Sede in",{"$f":"+IF(OR(ANAGRAFICA!C7=\"\",ANAGRAFICA!C8=\"\",ANAGRAFICA!H8=\"\"),\"\",CONCATENATE(ANAGRAFICA!C7,\" - \",ANAGRAFICA!C8,\" (\",ANAGRAFICA!H8,\")\"))","v":""}]
[]
[]
[null,"Partita IVA",{"$f":"+IF(ANAGRAFICA!C11=\"\",\"\",ANAGRAFICA!C11)","v":""},null,null,"CCIAA",{"$f":"+IF(OR(ANAGRAFICA!C12=\"\",ANAGRAFICA!E12=\"\"),\"\",CONCATENATE(ANAGRAFICA!C12,\" al N° \",ANAGRAFICA!E12))","v":""}]
[]
[null,"PEC",{"$f":"+IF(ANAGRAFICA!$C$9=\"\",\"\",ANAGRAFICA!$C$9)","v":""}]
[null,"CHIEDE L'EROGAZIONE DEL 4° SAL"]
[null,"per un importo pari ad €",null,{"$f":"+F37+IF(E39=\"NO\",0,E40)","v":0},"così ripartito:"]
[null,{"$f":"IFERROR(_xlfn.CONCAT(\"- Investimenti: € \",IF(F37=0,0,TEXT(F37,\"#.##0.00,00\")),\" corrispondenti al \",TEXT(F37/ANAGRAFICA!C17,\"0,0%\"), \" del valore degli investimenti ammessi alle agevolazioni pari ad  € \",TEXT(ANAGRAFICA!C17,\"#.##0.00\"),\" e così suddivisi:\"),\"\")","v":""}]
[null,"- Fatture quietanzate pari ad €",null,{"$f":"SUMIFS(F34:F36,I34:I36,\"SI\")","v":0}]
[null,"- Fatture NON quietanzate pari ad €",null,{"$f":"SUMIFS(F34:F36,I34:I36,\"NO\")","v":0},null,{"$f":"IFERROR(IF(D20/ANAGRAFICA!C17>30%,\"Superato limite del 30% per il 4° SAL previsto dalla normativa\",\"\"),\"\")","v":""}]
[null,"- Capitale Circolante Netto:",null,{"$f":"+IF(E39=\"NO\",0,E40)","v":0}]
[null,{"$f":"+CONCATENATE(\"La somma eventualmente erogata dovrà essere accreditata sul c/c bancario intestato alla Società istituito presso l'istituto di credito \",ANAGRAFICA!K10,\" - Filiale/Agenzia \",ANAGRAFICA!K11)","v":"La somma eventualmente erogata dovrà essere accreditata sul c/c bancario intestato alla Società istituito presso l'istituto di credito  - Filiale/Agenzia "}]
[null,{"$f":"+CONCATENATE(\"IBAN di riferimento - \",ANAGRAFICA!K13)","v":"IBAN di riferimento - "}]
[null,"Detto conto corrente è dedicato, ancorché in via non esclusiva, al ricevimento delle agevolazioni concesse alla medesima società beneficiaria ai sensi del Decreto interministeriale MiSE - MEF 4 dicembre 2020."]
[]
[]
[]
[null,"DETTAGLIO FATTURE RENDICONTATE"]
[]
[null,"1. ELENCO COMPLESSIVO DELLE FATTURE RENDICONTATE"]
[null,{"$f":"+CONCATENATE(\"Valore minimo rendicontabile è pari ad € \",TEXT(ANAGRAFICA!C17*0.1,\"#.##0.00\"),\" ed il valore delle fatture non quietanzate non può essere superiore ad € \",TEXT(ANAGRAFICA!C17*0.3,\"#.##0.00\"))","v":"Valore minimo rendicontabile è pari ad € 000 ed il valore delle fatture non quietanzate non può essere superiore ad € 000"}]
[]
[null,"N. fatt.","Fornitore ","Data fatt.","Descrizione","Imponibile SIVA","Importo IVA e altri oneri","Importo totale ","Quietanza Fatture","Categoria di spesa"]
[]
[]
[]
[null,null,null,null,null,{"$f":"SUM(F34:F36)","v":0}]
[]
[null,"Richiesta Capitale Circolante Netto",null,null,null,{"$f":"+IF(E39=\"SI\",CONCATENATE(\"Importo massimo richiedibile pari ad € \",TEXT(F37*ANAGRAFICA!F18,\"#.##0.00\")),\"\")","v":""}]
[null,"Valore CCN richiesto"]
[null,"La beneficiaria ha maturato e fruito di altre agevolazioni sui beni rendicontati"]
[]
[null,"2. DETTAGLIO DELLE MODALITA' DI PAGAMENTO DELLE FATTURE QUIETANZATE"]
[null,"N. fatt.","Fornitore ","Data fatt.","Importo singolo pagamento","Modalità di pagamento","Data pagamento"]
[]
[]
[]
[null,null,null,null,{"$f":"SUM(E45:E47)","v":0}]
[null,"Tutte le fatture devono essere registrate nei libri contabili e/o registri fiscali previsti dal regime fiscale adottato e nel rispetto della normativa vigente"]
[]
[null,"3. DETTAGLIO PAGAMENTI FATTURE NON QUIETANZATE DEL PRECEDENTE SAL"]
[null,{"$f":"+IF(NAVIGATORE!G14-NAVIGATORE!K14,CONCATENATE(\"Evidenza dell'avvenuto pagamento delle fatture rendicontate nel precedente SAL pari ad €  \",TEXT(NAVIGATORE!G22,\"0.00\"),\"\"),\"\")","v":""}]
[]
[null,"N. fatt.","Fornitore ","Data fatt.","Importo singolo pagamento","Modalità di pagamento","Data pagamento"]
[]
[]
[]
[null,null,null,null,{"$f":"SUM(E55:E57)","v":0}]
[]
[null,null,"LUOGO E DATA",null,null,null,null,{"$f":"+CONCATENATE(\"FIRMA DIGITALE DEL \",ANAGRAFICA!C5)","v":"FIRMA DIGITALE DEL "}]
[null,null,{"$f":"+CONCATENATE(ANAGRAFICA!C8,\" \",TEXT(TODAY(),\"gg/mm/aaaa\"))","v":" 27/05/2024"}]
[]
[null,"LA RICHIESTA DI EROGAZIONE DEVE ESSERE CORREDATA PENA DECADENZA DALLA SEGUENTE DOCUMENTAZIONE"]
[]
[null,"DICHIARAZIONI RICHIESTE PER ANTIMAFIA"]
[null,"TIPOLOGIA SOCIETARIA",null,null,null,null,"Società","Coop"]
[null,"ANT 1 - Dichiarazione Antimafia Società",null,null,null,null,{"$f":"+IF(ANAGRAFICA!$H$6=\"\",\"\",IF(AND(ANAGRAFICA!$C$22>=150000,AND(ANAGRAFICA!$H$6<>\"Soc. Coop.\",ANAGRAFICA!$H$6<>\"Soc. Coop. STP\")),\"obbl.\",\"\"))","v":""}]
[null,"ANT 2- Dichiarazione Antimafia Cooperative",null,null,null,null,null,{"$f":"+IF(AND(ANAGRAFICA!$C$22>=150000,OR(ANAGRAFICA!$H$6=\"Soc. Coop.\",ANAGRAFICA!$H$6=\"Soc. Coop. STP\")),\"obbl.\",\"\")","v":""}]
[null,"ANT 3 - Familiari ",null,null,null,null,{"$f":"+IF(G67=\"obbl.\",\"obbl.\",\"\")","v":""},{"$f":"+IF(H68=\"obbl.\",\"obbl.\",\"\")","v":""}]
[]
[null,"GARANZIE"]
[null,"Privilegio Speciale",null,null,null,{"$f":"+IF(ANAGRAFICA!$C$20>=250000,\"Obbl.\",\"\")","v":""}]
[]
[]
[null,"DICHIARAZIONE SOSTITUTIVE ATTO NOTORIO"]
[null,"MOD 1 - Dichiarazioni Complessive",null,null,null,"Obbl."]
[null,"MOD 2 - Dichiarazione Fornitori",null,null,null,"Obbl."]
[null,"MOD 3 - Dichiarazione Assenza Precedenti",null,null,null,"Obbl."]
[null,"MOD 4 – Dichiarazioni Cedente",null,null,null,"Obbl. in caso di spese specifiche"]
[null,"MOD 5 – Dichiarazione Impegno Cessionario",null,null,null,"Obbl. in caso di spese specifiche"]
[null,"MOD 6 - Antiriciclaggio (solo progetti diversi da PNRR)",null,null,null,"Obbl."]
[null,"MOD 7 - PNRR (solo progetti PNRR)",null,null,null,"Obbl."]
[null,"MOD 9 - Dichiarazione DURC",null,null,null,"Obbl."]
[]
[null,"ATTESTAZIONI E DOCUMENTI"]
[null," - Copia di un documento di riconoscimento in corso di validità",null,null,null,"Obbl."]
[null," - Copia della polizza assicurativa, contro il rischio di incendio/accessori",null,null,null,"Obbl."]
[null," - Copia dei titoli di spesa delle spese agevolate  e della contrattualistica di fornitura [Nota: I titoli di spesa devono riportare, nell’oggetto o nel campo note, l’indicazione del codice CUP (Codice Unico progetto) o della misura agevolativa “Nuove imprese a Tasso Zero”]",null,null,null,"Obbl."]
[null," - Copia sottoscritta digitalmente dal Legale Rappresentante del libro cespiti ammortizzabili con evidenza delle registrazioni delle fatture rendicontate ",null,null,null,"Obbl."]
[null," - Copia sottoscritta digitalmente dal Legale Rappresentante del libro giornale, con evidenza delle registrazioni delle fatture rendicontate e, se quietanzate, dei relativi pagamenti",null,null,null,"Obbl."]
[null," - Copia sottoscritta digitalmente dal Legale Rappresentante degli estratti conto bancari con evidenza dei pagamenti effettuati rispetto alle:\n a) spese sostenute e richieste nel SAL in corso (Tab. 2)\n b) spese rendicontate nel SAL precedente e successivamente pagate (Tab. 3) (solo per i SAL successivi al 1°)",null,null,null,"Obbl."]
[null," - Situazione patrimoniale, all’ultima data utile, con evidenza dell'eventuale costituzione dell'impegno (rif. delibera assembleare)  ad effettuare l'apporto finanziario privato ed i relativi versamenti",null,null,null,"Obbl."]
[]
[]
[null," - Relazione Tecnica del Direttore Lavori/Cantiere dello stato di avanzamento dei lavori connessi alle Opere Murarie (agevolate e non agevolate) relativa a:\n a) richieste e rilascio di permessi ed autorizzazioni abilitative all'avvio delle opere\n b) lavori realizzati\n c) lavori da realizzare\n d) variazioni eventuali intervenute in corso d'opera rispetto agli interventi approvati",null,null,null,"Obbl. in caso di spese per Opere Murarie"]
[null," - Copia dei contratto di acquisto dei beni mobili registrati e - in caso di mezzi targati - della carta di circolazione e del certificato di proprietà",null,null,null,"Obbl. in caso di spese specifiche"]
[null," - Attestazione dello stato di avanzamento degli interventi e della realizzazione del piano degli investimenti delle spese non agevolate (se previste), funzionali alla realizzazione del programma di investimento ",null,null,null,"Obbl. per spese realizzate ma non agevolate"]
[null,"- In caso di rendicontazione di spese relative ad attrezzature installate presso unità produttive diverse dall’unità interessata dal programma agevolato:\na) copia del libro dei beni prestati a terzi\nb) copia del titolo di disponibilità in uso a titolo gratuito, da parte del cessionario, delle attrezzature agevolate installate presso unità produttive diverse dall’unità produttiva interessata dal programma agevolato\nc) copia dei documenti di trasporto tenuti ai sensi del D.P.R. 6 ottobre 1978, n. 627, e del D.M. 29 novembre 1978 e ss.mm.ii., da cui risulta l’ubicazione di ciascun bene",null,null,null,"Obbl. in caso di spese specifiche"]
[]
[]
[]
[]
[]
[null,null,"LUOGO E DATA",null,null,null,null,{"$f":"+H60","v":"FIRMA DIGITALE DEL "}]
[null,null,{"$f":"+CONCATENATE(ANAGRAFICA!C43,\" \",TEXT(TODAY(),\"gg/mm/aaaa\"))","v":" 27/05/2024"}]

{"sheet":"4°SAL_Credito","index":12,"n_rows":15,"n_cols":12,"rows_kept":15,"cut":false,"hidden":false,"merged":[[3,1,3,11],[11,1,11,11],[13,6,14,11]]}
[]
[]
[]
[null,"Dettaglio delle agevolazione fruite sui beni oggetto dell'investimento"]
[null,"N. fatt.","Fornitore ","Data fatt.","Bene","Valore Imponibile  Bene","Tipo di agevolazione","Agevolazione maturata totale","di cui fruita (rif. compensazioni)\n(A)","Vantaggio fiscale (es. IRES/IRAP) su agevolazione fruita\n(B)","Totale ulteriori agevolazioni fruite\n(A+B)","CUP (ove presente)"]
[]
[]
[]
[null,null,null,null,null,{"$f":"+SUM(F6:F8)","v":0},null,{"$f":"+SUM(H6:H8)","v":0},{"$f":"+SUM(I6:I8)","v":0},{"$f":"+SUM(J6:J8)","v":0},{"$f":"+SUM(K6:K8)","v":0}]
[]
[]
[null,"La tabella deve riepilogare i beni oggetto di altre agevolazione (credito di imposta, fondi regionali ecc..), indicando le relative fatture e fornitore. Pertanto beni/fatture che non si riferiscono a beni oggetto di altre agevolazioni non dovranno essere elencati/e."]
[]
[null,"LUOGO E DATA",null,null,null,null,{"$f":"+CONCATENATE(\"FIRMA DIGITALE DEL \",ANAGRAFICA!C5)","v":"FIRMA DIGITALE DEL "}]
[null,{"$f":"+CONCATENATE(ANAGRAFICA!C8,\" \",TEXT(TODAY(),\"gg/mm/aaaa\"))","v":" 27/05/2024"}]

{"sheet":"SALDO","index":13,"n_rows":106,"n_cols":10,"rows_kept":106,"cut":false,"hidden":false,"merged":[[99,1,99,4],[104,7,105,9],[64,1,64,7],[48,1,49,9],[17,1,17,9],[93,1,93,4],[94,1,94,4],[96,1,96,4],[97,1,97,4],[98,1,98,4],[86,1,86,4],[89,1,89,4],[90,1,90,4],[91,1,91,4],[92,1,92,4],[77,1,77,4],[9,1,10,1],[9,2,10,9],[1,1,1,9],[3,2,3,7],[5,1,5,6],[5,7,5,9],[7,1,7,9],[22,1,22,9],[23,1,25,9],[51,1,51,9],[30,1,30,9],[12,2,12,3],[12,6,12,9],[14,2,14,9],[15,1,15,9],[21,1,21,9],[38,1,38,3],[39,1,39,3],[27,1,27,9],[40,1,40,3],[59,7,60,9],[78,1,78,4],[79,1,79,4],[70,1,70,5],[71,1,71,4],[74,1,74,5],[75,1,75,4],[76,1,76,4],[65,1,65,5],[80,1,80,4],[85,1,85,5],[83,1,83,4],[62,1,62,9],[95,1,95,4],[82,1,82,4],[81,1,81,4],[87,1,87,4],[88,1,88,4]]}
[]
[" ","RICHIESTA EROGAZIONE SALDO"]
[]
[null,"La Società",{"$f":"+IF(ANAGRAFICA!C6=\"\",\"\",ANAGRAFICA!C6)","v":""},null,null,null,null,null,"Progetto N.",{"$f":"+IF(ANAGRAFICA!C2=\"\",\"\",ANAGRAFICA!C2)","v":""}]
[]
[null,"nella persona del ",null,null,null,null,null,{"$f":"+IF(ANAGRAFICA!C5=\"\",\"\",ANAGRAFICA!C5)","v":""}]
[]
[null,{"$f":"IF(OR(ANAGRAFICA!C3=\"\",ANAGRAFICA!C4=\"\"),\"\",CONCATENATE(ANAGRAFICA!C3, \" codice fiscale \",ANAGRAFICA!C4))","v":""}]
[]
[null,"Sede in",{"$f":"+IF(OR(ANAGRAFICA!C7=\"\",ANAGRAFICA!C8=\"\",ANAGRAFICA!H8=\"\"),\"\",CONCATENATE(ANAGRAFICA!C7,\" - \",ANAGRAFICA!C8,\" (\",ANAGRAFICA!H8,\")\"))","v":""}]
[]
[]
[null,"Partita IVA",{"$f":"+IF(ANAGRAFICA!C11=\"\",\"\",ANAGRAFICA!C11)","v":""},null,null,"CCIAA",{"$f":"+IF(OR(ANAGRAFICA!C12=\"\",ANAGRAFICA!E12=\"\"),\"\",CONCATENATE(ANAGRAFICA!C12,\" al N° \",ANAGRAFICA!E12))","v":""}]
[]
[null,"PEC",{"$f":"+IF(ANAGRAFICA!$C$9=\"\",\"\",ANAGRAFICA!$C$9)","v":""}]
[null,"CHIEDE L'EROGAZIONE DEL SALDO"]
[null,"per un importo pari ad €",null,{"$f":"+F37+IF(E39=\"NO\",0,E40)","v":0},"così ripartito:"]
[null,{"$f":"IFERROR(_xlfn.CONCAT(\"- Investimenti: € \",IF(F37=0,0,TEXT(F37,\"#.##0.00,00\")),\" corrispondenti al \",TEXT(F37/ANAGRAFICA!C17,\"0,0%\"), \" del valore degli investimenti ammessi alle agevolazioni pari ad  € \",TEXT(ANAGRAFICA!C17,\"#.##0.00\"),\" e così suddivisi:\"),\"\")","v":""}]
[]
[]
[null,"- Capitale Circolante Netto:",null,{"$f":"+IF(E37=\"NO\",0,E38)","v":0}]
[null,{"$f":"+CONCATENATE(\"La somma eventualmente erogata dovrà essere accreditata sul c/c bancario intestato alla Società istituito presso l'istituto di credito \",ANAGRAFICA!K10,\" - Filiale/Agenzia \",ANAGRAFICA!K11)","v":"La somma eventualmente erogata dovrà essere accreditata sul c/c bancario intestato alla Società istituito presso l'istituto di credito  - Filiale/Agenzia "}]
[null,{"$f":"+CONCATENATE(\"IBAN di riferimento - \",ANAGRAFICA!K13)","v":"IBAN di riferimento - "}]
[null,"Detto conto corrente è dedicato, ancorché in via non esclusiva, al ricevimento delle agevolazioni concesse alla medesima società beneficiaria ai sensi del Decreto interministeriale MiSE - MEF 4 dicembre 2020."]
[]
[]
[]
[null,"DETTAGLIO FATTURE RENDICONTATE"]
[]
[null,"1. ELENCO COMPLESSIVO DELLE FATTURE RENDICONTATE"]
[null,{"$f":"+CONCATENATE(\"Valore rendicontato è pari ad € \",TEXT(ANAGRAFICA!C17*0.1,\"#.##0.00\"))","v":"Valore rendicontato è pari ad € 000"}]
[]
[null,"N. fatt.","Fornitore ","Data fatt.","Descrizione","Imponibile SIVA","Importo IVA e altri oneri","Importo totale ","Categoria di spesa"]
[]
[]
[]
[null,null,null,null,null,{"$f":"SUM(F34:F36)","v":0}]
[]
[null,"La beneficiaria richiede tutta l'agevolazione residua concedibile per il CCN"]
[null,"Valore CCN richiesto"]
[null,"La beneficiaria ha maturato e fruito di altre agevolazioni sui beni rendicontati"]
[]
[null,"2. DETTAGLIO DELLE MODALITA' DI PAGAMENTO DELLE FATTURE QUIETANZATE"]
[null,"N. fatt.","Fornitore ","Data fatt.","Importo singolo pagamento","Modalità di pagamento","Data pagamento"]
[]
[]
[]
[null,null,null,null,{"$f":"SUM(E45:E47)","v":0}]
[null,"Tutte le fatture devono essere registrate nei libri contabili e/o registri fiscali previsti dal regime fiscale adottato e nel rispetto della normativa vigente"]
[]
[null,"3. DETTAGLIO PAGAMENTI FATTURE NON QUIETANZATE DEL PRECEDENTE SAL"]
[null,{"$f":"+IF(NAVIGATORE!G25-NAVIGATORE!K14,CONCATENATE(\"Evidenza dell'avvenuto pagamento delle fatture rendicontate nel precedente SAL pari ad €  \",TEXT(NAVIGATORE!G25-NAVIGATORE!K14,\"0.00\"),\"\"),\"\")","v":""}]
[]
[null,"N. fatt.","Fornitore ","Data fatt.","Importo singolo pagamento","Modalità di pagamento","Data pagamento"]
[]
[]
[]
[null,null,null,null,{"$f":"SUM(E55:E57)","v":0}]
[]
[null,null,"LUOGO E DATA",null,null,null,null,{"$f":"+CONCATENATE(\"FIRMA DIGITALE DEL \",ANAGRAFICA!C5)","v":"FIRMA DIGITALE DEL "}]
[null,null,{"$f":"+CONCATENATE(ANAGRAFICA!C8,\" \",TEXT(TODAY(),\"gg/mm/aaaa\"))","v":" 27/05/2024"}]
[]
[null,"LA RICHIESTA DI EROGAZIONE DEVE ESSERE CORREDATA PENA DECADENZA DALLA SEGUENTE DOCUMENTAZIONE"]
[]
[null,"DICHIARAZIONI RICHIESTE PER ANTIMAFIA"]
[null,"TIPOLOGIA SOCIETARIA",null,null,null,null,"Società","Coop"]
[null,"ANT 1 - Dichiarazione Antimafia Società",null,null,null,null,{"$f":"+IF(ANAGRAFICA!$H$6=\"\",\"\",IF(AND(ANAGRAFICA!$C$22>=150000,AND(ANAGRAFICA!$H$6<>\"Soc. Coop.\",ANAGRAFICA!$H$6<>\"Soc. Coop. STP\")),\"obbl.\",\"\"))","v":""}]
[null,"ANT 2- Dichiarazione Antimafia Cooperative",null,null,null,null,null,{"$f":"+IF(AND(ANAGRAFICA!$C$22>=150000,OR(ANAGRAFICA!$H$6=\"Soc. Coop.\",ANAGRAFICA!$H$6=\"Soc. Coop. STP\")),\"obbl.\",\"\")","v":""}]
[null,"ANT 3 - Familiari ",null,null,null,null,{"$f":"+IF(G67=\"obbl.\",\"obbl.\",\"\")","v":""},{"$f":"+IF(H68=\"obbl.\",\"obbl.\",\"\")","v":""}]
[]
[null,"GARANZIE"]
[null,"Privilegio Speciale",null,null,null,{"$f":"+IF(ANAGRAFICA!$C$20>=250000,\"Obbl.\",\"\")","v":""}]
[]
[]
[null,"DICHIARAZIONE SOSTITUTIVE ATTO NOTORIO"]
[null,"MOD 1 - Dichiarazioni Complessive",null,null,null,"Obbl."]
[null,"MOD 2 - Dichiarazione Fornitori",null,null,null,"Obbl."]
[null,"MOD 3 - Dichiarazione Assenza Precedenti",null,null,null,"Obbl."]
[null,"MOD 4 – Dichiarazioni Cedente",null,null,null,"Obbl. in caso di spese specifiche"]
[null,"MOD 5 – Dichiarazione Impegno Cessionario",null,null,null,"Obbl. in caso di spese specifiche"]
[null,"MOD 6 - Antiriciclaggio (solo progetti diversi da PNRR)",null,null,null,"Obbl."]
[null,"MOD 7 - PNRR (solo progetti PNRR)",null,null,null,"Obbl."]
[null,"MOD 8 - Dichiarazione Ultimazione Programma",null,null,null,"Obbl."]
[null,"MOD 9 - Dichiarazione DURC",null,null,null,"Obbl."]
[]
[null,"ATTESTAZIONI E DOCUMENTI"]
[null," - Copia di un documento di riconoscimento in corso di validità",null,null,null,"Obbl."]
[null," - Copia della polizza assicurativa, contro il rischio di incendio/accessori",null,null,null,"Obbl."]
[null," - Copia dei titoli di spesa delle spese agevolate  e della contrattualistica di fornitura [Nota: I titoli di spesa devono riportare, nell’oggetto o nel campo note, l’indicazione del codice CUP (Codice Unico progetto) o della misura agevolativa “Nuove imprese a Tasso Zero”]",null,null,null,"Obbl."]
[null," - Copia sottoscritta digitalmente dal Legale Rappresentante del libro cespiti ammortizzabili con evidenza delle registrazioni delle fatture rendicontate ",null,null,null,"Obbl."]
[null," - Copia sottoscritta digitalmente dal Legale Rappresentante del libro giornale, con evidenza delle registrazioni delle fatture rendicontate e, se quietanzate, dei relativi pagamenti",null,null,null,"Obbl."]
[null," - Copia sottoscritta digitalmente dal Legale Rappresentante degli estratti conto bancari con evidenza dei pagamenti effettuati rispetto alle:\n a) spese sostenute e richieste nel SAL in corso (Tab. 2)\n b) spese rendicontate nel SAL precedente e successivamente pagate (Tab. 3) (solo per i SAL successivi al 1°)",null,null,null,"Obbl."]
[null," - Situazione patrimoniale, all’ultima data utile, con evidenza dell'eventuale costituzione dell'impegno (rif. delibera assembleare)  ad effettuare l'apporto finanziario privato ed i relativi versamenti",null,null,null,"Obbl."]
[]
[]
[null,"- Ultimo bilancio approvato, o in assenza Situazione contabile all’ultima data utile sottoscritta digitalmente dal Legale Rappresentante e ove presente dal soggetto deputato alla tenuta delle scritture contabili, con evidenza dei costi sostenuti a titolo di capitale circolante netto (cfr. Materie prime - Servizi - Godimento di beni di terzi)",null,null,null,"Obbl."]
[null," - Relazione Tecnica del Direttore Lavori/Cantiere dello stato di avanzamento dei lavori connessi alle Opere Murarie (agevolate e non agevolate) relativa a:\n a) richieste e rilascio di permessi ed autorizzazioni abilitative all'avvio delle opere\n b) lavori realizzati\n c) lavori da realizzare\n d) variazioni eventuali intervenute in corso d'opera rispetto agli interventi approvati",null,null,null,"Obbl. in caso di spese per Opere Murarie"]
[null," - Copia dei contratto di acquisto dei beni mobili registrati e - in caso di mezzi targati - della carta di circolazione e del certificato di proprietà",null,null,null,"Obbl. in caso di spese specifiche"]
[null," - Attestazione dello stato di avanzamento degli interventi e della realizzazione del piano degli investimenti delle spese non agevolate (se previste), funzionali alla realizzazione del programma di investimento ",null,null,null,"Obbl. per spese realizzate ma non agevolate"]
[null,"- In caso di rendicontazione di spese relative ad attrezzature installate presso unità produttive diverse dall’unità interessata dal programma agevolato:\na) copia del libro dei beni prestati a terzi\nb) copia del titolo di disponibilità in uso a titolo gratuito, da parte del cessionario, delle attrezzature agevolate installate presso unità produttive diverse dall’unità produttiva interessata dal programma agevolato\nc) copia dei documenti di trasporto tenuti ai sensi del D.P.R. 6 ottobre 1978, n. 627, e del D.M. 29 novembre 1978 e ss.mm.ii., da cui risulta l’ubicazione di ciascun bene",null,null,null,"Obbl. in caso di spese specifiche"]
[]
[]
[]
[]
[null,null,"LUOGO E DATA",null,null,null,null,{"$f":"+H60","v":"FIRMA DIGITALE DEL "}]
[null,null,{"$f":"+CONCATENATE(ANAGRAFICA!C46,\" \",TEXT(TODAY(),\"gg/mm/aaaa\"))","v":" 27/05/2024"}]

{"sheet":"SAL_a Saldo_Credito","index":14,"n_rows":15,"n_cols":12,"rows_kept":15,"cut":false,"hidden":false,"merged":[[3,1,3,11],[11,1,11,11],[13,6,14,11]]}
[]
[]
[]
[null,"Dettaglio delle agevolazione fruite sui beni oggetto dell'investimento"]
[null,"N. fatt.","Fornitore ","Data fatt.","Bene","Valore Imponibile  Bene","Tipo di agevolazione","Agevolazione maturata totale","di cui fruita (rif. compensazioni)\n(A)","Vantaggio fiscale (es. IRES/IRAP) su agevolazione fruita\n(B)","Totale ulteriori agevolazioni fruite\n(A+B)","CUP (ove presente)"]
[]
[]
[]
[null,null,null,null,null,{"$f":"+SUM(F6:F8)","v":0},null,{"$f":"+SUM(H6:H8)","v":0},{"$f":"+SUM(I6:I8)","v":0},{"$f":"+SUM(J6:J8)","v":0},{"$f":"+SUM(K6:K8)","v":0}]
[]
[]
[null,"La tabella deve riepilogare i beni oggetto di altre agevolazione (credito di imposta, fondi regionali ecc..), indicando le relative fatture e fornitore. Pertanto beni/fatture che non si riferiscono a beni oggetto di altre agevolazioni non dovranno essere elencati/e."]
[]
[null,"LUOGO E DATA",null,null,null,null,{"$f":"+CONCATENATE(\"FIRMA DIGITALE DEL \",ANAGRAFICA!C5)","v":"FIRMA DIGITALE DEL "}]
[null,{"$f":"+CONCATENATE(ANAGRAFICA!C8,\" \",TEXT(TODAY(),\"gg/mm/aaaa\"))","v":" 27/05/2024"}]

{"sheet":"UNICO","index":15,"n_rows":110,"n_cols":10,"rows_kept":110,"cut":false,"hidden":false,"merged":[[97,1,97,4],[98,1,98,4],[99,1,99,4],[101,7,102,9],[49,1,50,9],[91,1,91,4],[92,1,92,4],[94,1,94,4],[95,1,95,4],[96,1,96,4],[86,1,86,4],[87,1,87,4],[88,1,88,4],[89,1,89,4],[90,1,90,4],[77,1,77,4],[78,1,78,4],[79,1,79,4],[80,1,80,4],[85,1,85,5],[71,1,71,4],[72,1,72,4],[74,1,74,5],[75,1,75,4],[76,1,76,4],[81,1,81,4],[82,1,82,4],[83,1,83,4],[54,1,54,9],[51,7,52,9],[23,1,25,9],[27,1,27,9],[22,1,22,9],[41,1,41,3],[93,1,93,4],[1,1,1,9],[3,2,3,7],[5,1,5,6],[5,7,5,9],[7,1,7,9],[9,1,10,1],[9,2,10,9],[12,2,12,3],[12,6,12,9],[14,2,14,9],[15,1,15,9],[21,1,21,9],[64,1,64,7],[65,1,65,5],[70,1,70,5]]}
[]
[" ","RICHIESTA EROGAZIONE UNICA SOLUZIONE"]
[]
[null,"La Società",{"$f":"+IF(ANAGRAFICA!C6=\"\",\"\",ANAGRAFICA!C6)","v":""},null,null,null,null,null,"Progetto N.",{"$f":"+IF(ANAGRAFICA!C2=\"\",\"\",ANAGRAFICA!C2)","v":""}]
[]
[null,"nella persona del ",null,null,null,null,null,{"$f":"+IF(ANAGRAFICA!C5=\"\",\"\",ANAGRAFICA!C5)","v":""}]
[]
[null,{"$f":"IF(OR(ANAGRAFICA!C3=\"\",ANAGRAFICA!C4=\"\"),\"\",CONCATENATE(ANAGRAFICA!C3, \" codice fiscale \",ANAGRAFICA!C4))","v":""}]
[]
[null,"Sede in",{"$f":"+IF(OR(ANAGRAFICA!C7=\"\",ANAGRAFICA!C8=\"\",ANAGRAFICA!H8=\"\"),\"\",CONCATENATE(ANAGRAFICA!C7,\" - \",ANAGRAFICA!C8,\" (\",ANAGRAFICA!H8,\")\"))","v":""}]
[]
[]
[null,"Partita IVA",{"$f":"+IF(ANAGRAFICA!$C$11=\"\",\"\",ANAGRAFICA!$C$11)","v":""},null,null,"CCIAA",{"$f":"+IF(OR(ANAGRAFICA!C12=\"\",ANAGRAFICA!E12=\"\"),\"\",CONCATENATE(ANAGRAFICA!C12,\" al N° \",ANAGRAFICA!E12))","v":""}]
[]
[null,"PEC",{"$f":"+IF(ANAGRAFICA!$C$9=\"\",\"\",ANAGRAFICA!$C$9)","v":""}]
[null,"CHIEDE L'EROGAZIONE IN UNICA SOLUZIONE"]
[null,"per un importo pari ad €",null,{"$f":"+$F$38+IF($E$40=\"NO\",0,$E$41)","v":0},"così ripartito:"]
[null,{"$f":"IFERROR(_xlfn.CONCAT(\"- Investimenti: € \",IF($F$38=0,0,TEXT($F$38,\"#.##0.00,00\")),\" corrispondenti al \",TEXT($F$38/ANAGRAFICA!$C$17,\"0,0%\"), \" del valore degli investimenti ammessi alle agevolazioni pari ad  € \",TEXT(ANAGRAFICA!$C$17,\"#.##0.00\"),\" e così suddivisi:\"),\"\")","v":""}]
[]
[]
[null,"- Capitale Circolante Netto:",null,{"$f":"+IF($E$40=\"NO\",0,$E$41)","v":0}]
[null,{"$f":"+CONCATENATE(\"La somma eventualmente erogata dovrà essere accreditata sul c/c bancario intestato alla Società istituito presso l'istituto di credito \",ANAGRAFICA!K10,\" - Filiale/Agenzia \",ANAGRAFICA!K11)","v":"La somma eventualmente erogata dovrà essere accreditata sul c/c bancario intestato alla Società istituito presso l'istituto di credito  - Filiale/Agenzia "}]
[null,{"$f":"+CONCATENATE(\"IBAN di riferimento - \",ANAGRAFICA!K13)","v":"IBAN di riferimento - "}]
[null,"Detto conto corrente è dedicato, ancorché in via non esclusiva, al ricevimento delle agevolazioni concesse alla medesima società beneficiaria ai sensi del Decreto interministeriale MiSE - MEF 4 dicembre 2020."]
[]
[]
[]
[null,"DETTAGLIO FATTURE RENDICONTATE"]
[]
[]
[]
[]
[null,"1. ELENCO COMPLESSIVO DELLE FATTURE RENDICONTATE"]
[null,"N. fatt.","Fornitore ","Data fatt.","Descrizione","Imponibile SIVA","Importo IVA e altri oneri","Importo totale ","Categoria di spesa"]
[]
[]
[]
[null,null,null,null,null,{"$f":"SUM(F35:F37)","v":0}]
[]
[null,"Richiesta Capitale Circolante Netto",null,null,null,{"$f":"+IF(E40=\"SI\",CONCATENATE(\"Importo massimo richiedibile pari ad € \",TEXT(F38*ANAGRAFICA!F18,\"#.##0.00\")),\"\")","v":""}]
[null,"Valore CCN richiesto"]
[null,"La beneficiaria ha maturato e fruito di altre agevolazioni sui beni rendicontati"]
[]
[null,"2. DETTAGLIO DELLE MODALITA' DI PAGAMENTO DELLE FATTURE QUIETANZATE"]
[null,"N. fatt.","Fornitore ","Data fatt.","Importo singolo pagamento","Modalità di pagamento","Data pagamento"]
[]
[]
[]
[null,null,null,null,{"$f":"SUM(E46:E48)","v":0}]
[null,"Tutte le fatture devono essere registrate nei libri contabili e/o registri fiscali previsti dal regime fiscale adottato e nel rispetto della normativa vigente"]
[]
[null,null,"LUOGO E DATA",null,null,null,null,{"$f":"+CONCATENATE(\"FIRMA DIGITALE DEL \",ANAGRAFICA!C5)","v":"FIRMA DIGITALE DEL "}]
[null,null,{"$f":"+CONCATENATE(ANAGRAFICA!C8,\" \",TEXT(TODAY(),\"gg/mm/aaaa\"))","v":" 27/05/2024"}]
[]
[null,"LA RICHIESTA DI EROGAZIONE DEVE ESSERE CORREDATA PENA DECADENZA DALLA SEGUENTE DOCUMENTAZIONE"]
[]
[]
[]
[]
[]
[]
[]
[]
[]
[null,"DICHIARAZIONI RICHIESTE PER ANTIMAFIA"]
[null,"TIPOLOGIA SOCIETARIA",null,null,null,null,"Società","Coop"]
[null,"ANT 1 - Dichiarazione Antimafia Società",null,null,null,null,{"$f":"+IF(ANAGRAFICA!$H$6=\"\",\"\",IF(AND(ANAGRAFICA!$C$22>=150000,AND(ANAGRAFICA!$H$6<>\"Soc. Coop.\",ANAGRAFICA!$H$6<>\"Soc. Coop. STP\")),\"obbl.\",\"\"))","v":""}]
[null,"ANT 2- Dichiarazione Antimafia Cooperative",null,null,null,null,null,{"$f":"+IF(AND(ANAGRAFICA!$C$22>=150000,OR(ANAGRAFICA!$H$6=\"Soc. Coop.\",ANAGRAFICA!$H$6=\"Soc. Coop. STP\")),\"obbl.\",\"\")","v":""}]
[null,"ANT 3 - Familiari ",null,null,null,null,{"$f":"+IF(G67=\"obbl.\",\"obbl.\",\"\")","v":""},{"$f":"+IF(H68=\"obbl.\",\"obbl.\",\"\")","v":""}]
[]
[null,"GARANZIE"]
[null,"Privilegio Speciale",null,null,null,{"$f":"+IF(ANAGRAFICA!$C$20>=250000,\"Obbl.\",\"\")","v":""}]
[null,"Ipoteca 1° Grado immobile nel caso di acquisto di immobile (solo CAPO III)",null,null,null,{"$f":"IF(COUNTIF(I35:I37,APP!D2)>0,\"Obbl.\",0)","v":0}]
[]
[null,"DICHIARAZIONE SOSTITUTIVE ATTO NOTORIO"]
[null,"MOD 1 - Dichiarazioni Complessive",null,null,null,"Obbl."]
[null,"MOD 2 - Dichiarazione Fornitori",null,null,null,"Obbl."]
[null,"MOD 3 - Dichiarazione Assenza Precedenti",null,null,null,"Obbl."]
[null,"MOD 4 – Dichiarazioni Cedente",null,null,null,"Obbl. in caso di spese specifiche"]
[null,"MOD 5 – Dichiarazione Impegno Cessionario",null,null,null,"Obbl. in caso di spese specifiche"]
[null,"MOD 6 - Antiriciclaggio (solo progetti diversi da PNRR)",null,null,null,"Obbl."]
[null,"MOD 7 - PNRR (solo progetti PNRR)",null,null,null,"Obbl."]
[null,"MOD 8 - Dichiarazione Ultimazione Programma",null,null,null,"Obbl."]
[null,"MOD 9 - Dichiarazione DURC",null,null,null,"Obbl."]
[]
[null,"ATTESTAZIONI E DOCUMENTI"]
[null," - Copia di un documento di riconoscimento in corso di validità",null,null,null,"Obbl."]
[null,null,null,null,null,"Obbl."]
[null," - Copia dei titoli di spesa delle spese agevolate  e della contrattualistica di fornitura [Nota: I titoli di spesa devono riportare, nell’oggetto o nel campo note, l’indicazione del codice CUP (Codice Unico progetto) o della misura agevolativa “Nuove imprese a Tasso Zero”]",null,null,null,"Obbl."]
[null," - Copia sottoscritta digitalmente dal Legale Rappresentante del libro cespiti ammortizzabili con evidenza delle registrazioni delle fatture rendicontate ",null,null,null,"Obbl."]
[null," - Copia sottoscritta digitalmente dal Legale Rappresentante del libro giornale, con evidenza delle registrazioni delle fatture rendicontate e, se quietanzate, dei relativi pagamenti",null,null,null,"Obbl."]
[null," - Copia sottoscritta digitalmente dal Legale Rappresentante degli estratti conto bancari con evidenza dei pagamenti effettuati rispetto alle:\n a) spese sostenute e richieste nel SAL in corso (Tab. 2)\n b) spese rendicontate nel SAL precedente e successivamente pagate (Tab. 3) (solo per i SAL successivi al 1°)",null,null,null,"Obbl."]
[null," - Situazione patrimoniale, all’ultima data utile, con evidenza dell'eventuale costituzione dell'impegno (rif. delibera assembleare)  ad effettuare l'apporto finanziario privato ed i relativi versamenti",null,null,null,"Obbl."]
[null," - Ultimo bilancio approvato, o in assenza Situazione contabile all’ultima data utile sottoscritta digitalmente dal Legale Rappresentante e ove presente dal soggetto deputato alla tenuta delle scritture contabili, con evidenza dei costi sostenuti a titolo di capitale circolante netto (cfr. Materie prime - Servizi - Godimento di beni di terzi)",null,null,null,"Obbl."]
[null," - Perizia Asseverata che attesti la rispondenza dell’immobile agli specifici vincoli edilizi, urbanistici e di destinazione d’uso ovvero la loro avvenuta richiesta, laddove gli stessi non siano stati ancora rilasciati",null,null,null,"Obbl."]
[null," - Attestazione della disponibilità dei locali idonei all’attività d’impresa, ivi inclusa la conformità degli stessi",null,null,null,"Obbl. se non già fornita"]
[null," - Relazione Tecnica del Direttore Lavori/Cantiere dello stato di avanzamento dei lavori connessi alle Opere Murarie (agevolate e non agevolate) relativa a:\n a) richieste e rilascio di permessi ed autorizzazioni abilitative all'avvio delle opere\n b) lavori realizzati\n c) lavori da realizzare\n d) variazioni eventuali intervenute in corso d'opera rispetto agli interventi approvati",null,null,null,"Obbl. in caso di spese per Opere Murarie"]
[null," - Copia dei contratto di acquisto dei beni mobili registrati e - in caso di mezzi targati - della carta di circolazione e del certificato di proprietà",null,null,null,"Obbl. in caso di spese specifiche"]
[null," - Attestazione dello stato di avanzamento degli interventi e della realizzazione del piano degli investimenti delle spese non agevolate (se previste), funzionali alla realizzazione del programma di investimento ",null,null,null,"Obbl. per spese realizzate ma non agevolate"]
[null,"- In caso di rendicontazione di spese relative ad attrezzature installate presso unità produttive diverse dall’unità interessata dal programma agevolato:\na) copia del libro dei beni prestati a terzi\nb) copia del titolo di disponibilità in uso a titolo gratuito, da parte del cessionario, delle attrezzature agevolate installate presso unità produttive diverse dall’unità produttiva interessata dal programma agevolato\nc) copia dei documenti di trasporto tenuti ai sensi del D.P.R. 6 ottobre 1978, n. 627, e del D.M. 29 novembre 1978 e ss.mm.ii., da cui risulta l’ubicazione di ciascun bene",null,null,null,"Obbl. in caso di spese specifiche"]
[]
[null,null,"LUOGO E DATA",null,null,null,null,{"$f":"+CONCATENATE(\"FIRMA DIGITALE DEL \",ANAGRAFICA!C44)","v":"FIRMA DIGITALE DEL "}]
[null,null,{"$f":"+CONCATENATE(ANAGRAFICA!C47,\" \",TEXT(TODAY(),\"gg/mm/aaaa\"))","v":" 27/05/2024"}]
[]
[]
[]
[]
[]
[]
[null,null,null,null,null,null,null,{"$f":"+H68","v":""}]

{"sheet":"SAL_Unico_Credito","index":16,"n_rows":15,"n_cols":12,"rows_kept":15,"cut":false,"hidden":false,"merged":[[3,1,3,11],[11,1,11,11],[13,6,14,11]]}
[]
[]
[]
[null,"Dettaglio delle agevolazione fruite sui beni oggetto dell'investimento"]
[null,"N. fatt.","Fornitore ","Data fatt.","Bene","Valore Imponibile  Bene","Tipo di agevolazione","Agevolazione maturata totale","di cui fruita (rif. compensazioni)\n(A)","Vantaggio fiscale (es. IRES/IRAP) su agevolazione fruita\n(B)","Totale ulteriori agevolazioni fruite\n(A+B)","CUP (ove presente)"]
[]
[]
[]
[null,null,null,null,null,{"$f":"+SUM(F6:F8)","v":0},null,{"$f":"+SUM(H6:H8)","v":0},{"$f":"+SUM(I6:I8)","v":0},{"$f":"+SUM(J6:J8)","v":0},{"$f":"+SUM(K6:K8)","v":0}]
[]
[]
[null,"La tabella deve riepilogare i beni oggetto di altre agevolazione (credito di imposta, fondi regionali ecc..), indicando le relative fatture e fornitore. Pertanto beni/fatture che non si riferiscono a beni oggetto di altre agevolazioni non dovranno essere elencati/e."]
[]
[null,"LUOGO E DATA",null,null,null,null,{"$f":"+CONCATENATE(\"FIRMA DIGITALE DEL \",ANAGRAFICA!C5)","v":"FIRMA DIGITALE DEL "}]
[null,{"$f":"+CONCATENATE(ANAGRAFICA!C8,\" \",TEXT(TODAY(),\"gg/mm/aaaa\"))","v":" 27/05/2024"}]

{"sheet":"CASISTICA CAPOIII","index":17,"n_rows":39,"n_cols":18,"rows_kept":39,"cut":false,"hidden":true,"merged":[[26,7,26,10],[21,7,21,10],[22,7,22,10],[23,7,23,10],[1,1,1,5],[2,1,3,1],[2,3,3,3],[2,4,3,4],[2,5,3,5],[2,2,3,2],[1,7,3,11],[6,8,6,9],[5,7,5,11],[17,7,17,11],[25,7,25,11],[18,7,18,10],[36,7,36,10],[38,7,38,10],[37,7,37,10],[35,7,35,10],[27,7,27,10],[28,7,28,10],[29,7,29,10],[30,7,30,10],[31,7,31,10],[32,7,32,10],[33,7,33,10],[34,7,34,10],[12,7,12,11],[6,10,6,11],[19,7,19,10],[20,7,20,10],[13,7,13,10],[14,7,14,10],[15,7,15,10]]}
[]
[null,"EVENTO EROGAZ.",null,null,null,null,null,"TAVOLA SINOTTICA PER LA DETERMINAZIONE DELLA DOCUMENTAZIONE DA INSERIRE NELLA RICHIESTA DI EROGAZIONE"]
[null,"ANTICIPO","1° SAL","SAL INTERMEDI","SALDO","SALDO UNICO"]
[]
[]
[null,"x","x","x","x","x",null,"DICHIARAZIONI RICHIESTE PER ANTIMAFIA"]
[null,null,null,null,null,null,null,"IMPORTO TOTALE AGEVOLAZIONE CONCESSA","tra 150.000€ e 250.000€",null,">250.000€"]
[null,null,null,null,null,null,null,"TIPOLOGIA SOCIETARIA","Società","Coop","Società","Coop"]
[null,"x","x","x","x","x",null,"ANT 1 - Dichiarazione Antimafia Società","x",null,"x"]
[null,"x","x","x","x","x",null,"ANT 2- Dichiarazione Antimafia Cooperative",null,"x",null,"x"]
[null,"x","x","x","x","x",null,"ANT 3 - Familiari ","x","x","x","x"]
[]
[null,"x","x","x","x","x",null,"GARANZIE"]
[null,"x",null,null,null,null,null,"Fideiussione o polizza fideiussioria",null,null,null,{"$f":"+IF(ANTICIPO!C18>0,\"x\",\"\")","v":""}]
[null,null,"x","x","x","x",null,"Privilegio Speciale",null,null,null,{"$f":"+IF(ANAGRAFICA!C19>=250000,\"x\",\"\")","v":""}]
[null,null,"x",null,null,"x",null,"Ipoteca 1° Grado immobile nel caso di acquisto di immobile (solo CAPOIII)",null,null,null,{"$f":"IF(COUNTIF('1°SAL'!J34:J36,APP!D2)>0,\"x\",0)","v":0}]
[]
[null,"x","x","x","x","x",null,"DICHIARAZIONE SOSTITUTIVE ATTO NOTORIO"]
[null,"x","x","x","x","x",null,"MOD 1 - Dichiarazioni Complessive",null,null,null,"x"]
[null,null,"x","x","x","x",null,"MOD 2 - Dichiarazione Fornitori",null,null,null,"x"]
[null,"x","x","x","x","x",null,"MOD 3 - Dichiarazione Assenza Precenti",null,null,null,"x"]
[null,null,"x","x","x","x",null,"MOD 4 – Dichiarazioni Cedente",null,null,null,"x"]
[null,null,"x","x","x","x",null,"MOD 5 – Dichiarazione Impegno Cessionario",null,null,null,"x"]
[null,null,null,null,"x","x",null,"MOD 6 - Dichiarazione Ultimazione Programma",null,null,null,"x",null,null,null,null,null," "]
[]
[null,"x","x","x","x","x",null,"ATTESTAZIONI E DOCUMENTI"]
[null,"x","x","x","x","x",null," - Copia di un documento di riconoscimento in corso di validità",null,null,null,"x"]
[null,null,"x",null,null,"x",null," - Attestazione della disponibilità dei locali idonei all’attività d’impresa",null,null,null,"x",null,null,null,null,null," "]
[null,null,"x",null,null,"x",null," - Attestazione della rispondenza dell’immobile agli specifici vincoli edilizi, urbanistici e di destinazione d’uso ovvero la loro avvenuta richiesta, laddove gli stessi non siano stati ancora rilasciati",null,null,null,"x"]
[null,null,"x","x","x","x",null," - Attestazione dello stato di avanzamento degli interventi e della realizzazione del piano degli investimenti delle spese non agevolate, funzionali alla realizzazione del programma di investimento ",null,null,null,"x"]
[null,null,"x","x","x","x",null," - Copia dei titoli di spesa delle spese agevolaTe  e della contrattualistica di fornitura [Nota: I titoli di spesa devono riportare, anche mediante l’utilizzo di apposito timbro, la dicitura: ",null,null,null,"x"]
[null,null,"x","x","x","x",null," - Copia dei contratto di acquisto dei beni mobili registrati e - in caso di mezzi targati - della carta di circolazione e del certificato di proprietà",null,null,null,"x"]
[null,null,"x","x","x","x",null," - Copia sottoscritta digitalmente dal Legale Rappresentante del libro cespiti ammortizzabili con evidenza delle registrazioni delle fatture rendicontate ",null,null,null,"x"]
[null,null,"x","x","x","x",null," - Copia sottoscritta digitalmente dal Legale Rappresentante del libro giornale, con evidenza delle registrazioni delle fatture rendicontate e, se quietanzate, dei relativi pagamenti",null,null,null,"x"]
[null,null,"x","x","x","x",null," - Copia sottoscritta digitalmente dal Legale Rappresentante degli estratti conto bancari con evidenza: dei pagamenti effettuati rispetto alle spese:\n a) dei pagamenti effettuati rispetto alle spese sostenute e richieste nel SAL in corso (Tab. 2);\n b) dei pagamenti effettuati rispetto alle spese rendicontate nel SAL precedente e successivamente pagate (Tab. 3) (solo per i SAL successivi al 1°);\nc) dei versamenti della quota di apporto del contributo finanziario in relazione al SAL rendicontato",null,null,null,"x"]
[null,null,"x","x","x","x",null," - Situazione patrimoniale , all’ultima data utile, che evidenzia i versamenti effettuati a titolo di apporto finanziario privato",null,null,null,"x"]
[null,null,"x","x","x","x",null," - Copia della polizza assicurativa, vincolata a favore di Invitalia, contro il rischio di incendio/accessori e delle quietanze attestanti il regolare pagamento dei premi",null,null,null,"x"]
[null,null,"x","x","x","x",null,"- In caso di rendicontazione di spese relative ad attrezzature installate presso unità produttive diverse dall’unità interessata dal programma agevolato:\na) copia del libro dei beni prestati a terzi\nb) copia del titolo di disponibilità in uso a titolo gratuito, da parte del cessionario, delle attrezzature agevolate installate presso unità produttive diverse dall’unità produttiva interessata dal programma agevolato\nc) copia dei documenti di trasporto tenuti ai sensi del D.P.R. 6 ottobre 1978, n. 627, e del D.M. 29 novembre 1978 e ss.mm.ii., da cui risulta l’ubicazione di ciascun bene",null,null,null,"x"]
[null,null,"x","x","x","x",null," - Relazione Tecnica del Direttore Lavori/Cantiere dello stato di avanzamento dei lavori connessi alle Opere Murarie (agevolate e non agevolate) relativa a:\n a) richieste e rilascio di permessi ed autorizzazioni abilitative all'avvio delle opere\n b) lavori realizzati\n c) lavori da realizzare\n d) variazioni eventuali intervenute in corso d'opera",null,null,null,"x"]

{"sheet":"APP","index":18,"n_rows":18,"n_cols":11,"rows_kept":18,"cut":false,"hidden":true,"merged":[]}
[null,{"$f":"+IF(OR(ANAGRAFICA!G2=\"\",ANAGRAFICA!G2=\"CAPO II\"),\"CAPO II\",\"CAPO III\")","v":"CAPO II"},"CAPO II","CAPO III","MODALITA",null,null,null,null,null,"SRL"]
[1,{"$f":"+HLOOKUP($B$1,$C$1:$D$7,(A2+1),0)","v":"Opere murarie e assimilate"},"Opere murarie e assimilate","Acquisto immobile sede dell'attività","Assegno Bancario",null,null,null,null,null,"SRLS"]
[2,{"$f":"+HLOOKUP($B$1,$C$1:$D$7,(A3+1),0)","v":"Macchinari, impianti ed attrezzature"},"Macchinari, impianti ed attrezzature","Opere murarie e assimilate","Assegno Circolare",null,null,null,null,null,"SRL Unipersonale"]
[3,"Programmi informatici e servizi per le tecnologie dell’informazione e della comunicazione","Programmi informatici e servizi per le tecnologie dell’informazione e della comunicazione","Macchinari, impianti ed attrezzature","Bonifico",null,null,null,null,null,"SPA"]
[4,"Acquisto di brevetti o acquisizione di relative licenze d’uso","Acquisto di brevetti o acquisizione di relative licenze d’uso","Programmi informatici, brevetti, licenze e marchi","Carta Credito",null,null,null,null,null,"SAPA"]
[5,{"$f":"IF(HLOOKUP($B$1,$C$1:$D$7,(A6+1),0)=0,\"\",HLOOKUP($B$1,$C$1:$D$7,(A6+1),0))","v":"Consulenze specialistiche"},"Consulenze specialistiche",null,"Carte POS",null,null,null,null,null,"SNC"]
[6,{"$f":"IF(HLOOKUP($B$1,$C$1:$D$7,(A7+1),0)=0,\"\",HLOOKUP($B$1,$C$1:$D$7,(A7+1),0))","v":"Oneri notarili connessi alla stipula del contratto di finanziamento ed oneri connessi alla costituzione della società"},"Oneri notarili connessi alla stipula del contratto di finanziamento ed oneri connessi alla costituzione della società",null,"RIBA",null,null,null,null,null,"SAS"]
[null,null,null,null,null,null,null,null,null,null,"SRL STP"]
[null,null,null,null,null,null,null,null,null,null,"SRLS STP"]
[null,null,null,null,null,null,null,null,null,null,"SPA STP"]
[null,null,null,null,null,null,null,null,null,null,"SAPA STP"]
[null,null,null,null,null,null,null,null,null,null,"SNC STP"]
[null,null,null,null,null,null,null,null,null,null,"SAS STP"]
[null,null,null,null,null,null,null,null,null,null,"Soc. cons. srl"]
[null,null,null,null,null,null,null,null,null,null,"Soc. Coop."]
[null,null,null,null,null,null,null,null,null,null,"Soc. Coop. STP"]
[null,null,null,null,null,null,null,null,null,null,"Soc. Cons. A.R.L."]
[null,null,null,null,null,null,null,null,null,null,"Società estera"]